{"text_format":"3","workbook":"xlsx","n_sheets":12,"sheets":["JAN","FEB","MRZ","APR","MAI","JUN","JUL","AUG","SEP","OKT","NOV","DEZ"],"not_rendered":{"defined_names":40},"read":"whole","date_system":"1900"}

{"sheet":"JAN","index":0,"n_rows":20,"n_cols":9,"rows_kept":20,"merged":[[16,2,17,2],[16,3,17,3],[17,4,19,8]]}
[null,"JAN","SO",{"$f":"UPPER(TEXT(D3,\"aaa\"))","v":"MO"},"DI","MI","DO","FR","SA"]
[null,{"$f":"YEAR(TODAY())","v":2018}]
[null,null,{"$f":"TageUndWochen+DATE(Kalenderjahr,1,1)-WEEKDAY(DATE(Kalenderjahr,1,1),(Wochenanfang=\"MO\")+1)+1","v":"2017-12-31"},"2018-01-01","2018-01-02","2018-01-03","2018-01-04","2018-01-05","2018-01-06"]
[null,null,{"$f":"IF(DAY(Kalendertag)=1,CONCATENATE(\"Woche \",WEEKNUM(Kalendertag),\"/Tag \",Kalendertag-DATE(YEAR(Kalendertag),1,0)),CONCATENATE(\"Tag \",Kalendertag-DATE(YEAR(Kalendertag),1,0)))","v":"Tag 365"},{"$f":"IF(DAY(Kalendertag)=1,CONCATENATE(\"Woche \",WEEKNUM(Kalendertag),\"/Tag \",Kalendertag-DATE(YEAR(Kalendertag),1,0)),CONCATENATE(\"Tag \",Kalendertag-DATE(YEAR(Kalendertag),1,0)))","v":"Woche 1/Tag 1"},{"$f":"IF(DAY(Kalendertag)=1,CONCATENATE(\"Woche \",WEEKNUM(Kalendertag),\"/Tag \",Kalendertag-DATE(YEAR(Kalendertag),1,0)),CONCATENATE(\"Tag \",Kalendertag-DATE(YEAR(Kalendertag),1,0)))","v":"Tag 2"},{"$f":"IF(DAY(Kalendertag)=1,CONCATENATE(\"Woche \",WEEKNUM(Kalendertag),\"/Tag \",Kalendertag-DATE(YEAR(Kalendertag),1,0)),CONCATENATE(\"Tag \",Kalendertag-DATE(YEAR(Kalendertag),1,0)))","v":"Tag 3"},{"$f":"IF(DAY(Kalendertag)=1,CONCATENATE(\"Woche \",WEEKNUM(Kalendertag),\"/Tag \",Kalendertag-DATE(YEAR(Kalendertag),1,0)),CONCATENATE(\"Tag \",Kalendertag-DATE(YEAR(Kalendertag),1,0)))","v":"Tag 4"},{"$f":"IF(DAY(Kalendertag)=1,CONCATENATE(\"Woche \",WEEKNUM(Kalendertag),\"/Tag \",Kalendertag-DATE(YEAR(Kalendertag),1,0)),CONCATENATE(\"Tag \",Kalendertag-DATE(YEAR(Kalendertag),1,0)))","v":"Tag 5"},{"$f":"IF(DAY(Kalendertag)=1,CONCATENATE(\"Woche \",WEEKNUM(Kalendertag),\"/Tag \",Kalendertag-DATE(YEAR(Kalendertag),1,0)),CONCATENATE(\"Tag \",Kalendertag-DATE(YEAR(Kalendertag),1,0)))","v":"Tag 6"}]
[]
[null,null,{"$f":"TageUndWochen+DATE(Kalenderjahr,1,1)-WEEKDAY(DATE(Kalenderjahr,1,1),(Wochenanfang=\"MO\")+1)+8","v":"2018-01-07"},"2018-01-08","2018-01-09","2018-01-10","2018-01-11","2018-01-12","2018-01-13"]
[null,null,{"$f":"IF(WEEKDAY(Kalendertag)=WochenanfangWert,CONCATENATE(\"Woche \",WEEKNUM(Kalendertag),\"/Tag \",Kalendertag-DATE(YEAR(Kalendertag),1,0)),CONCATENATE(\"Tag \",Kalendertag-DATE(YEAR(Kalendertag),1,0)))","v":"Woche 2/Tag 7"},{"$f":"IF(WEEKDAY(Kalendertag)=WochenanfangWert,CONCATENATE(\"Woche \",WEEKNUM(Kalendertag),\"/Tag \",Kalendertag-DATE(YEAR(Kalendertag),1,0)),CONCATENATE(\"Tag \",Kalendertag-DATE(YEAR(Kalendertag),1,0)))","v":"Tag 8"},{"$f":"IF(WEEKDAY(Kalendertag)=WochenanfangWert,CONCATENATE(\"Woche \",WEEKNUM(Kalendertag),\"/Tag \",Kalendertag-DATE(YEAR(Kalendertag),1,0)),CONCATENATE(\"Tag \",Kalendertag-DATE(YEAR(Kalendertag),1,0)))","v":"Tag 9"},{"$f":"IF(WEEKDAY(Kalendertag)=WochenanfangWert,CONCATENATE(\"Woche \",WEEKNUM(Kalendertag),\"/Tag \",Kalendertag-DATE(YEAR(Kalendertag),1,0)),CONCATENATE(\"Tag \",Kalendertag-DATE(YEAR(Kalendertag),1,0)))","v":"Tag 10"},{"$f":"IF(WEEKDAY(Kalendertag)=WochenanfangWert,CONCATENATE(\"Woche \",WEEKNUM(Kalendertag),\"/Tag \",Kalendertag-DATE(YEAR(Kalendertag),1,0)),CONCATENATE(\"Tag \",Kalendertag-DATE(YEAR(Kalendertag),1,0)))","v":"Tag 11"},{"$f":"IF(WEEKDAY(Kalendertag)=WochenanfangWert,CONCATENATE(\"Woche \",WEEKNUM(Kalendertag),\"/Tag \",Kalendertag-DATE(YEAR(Kalendertag),1,0)),CONCATENATE(\"Tag \",Kalendertag-DATE(YEAR(Kalendertag),1,0)))","v":"Tag 12"},{"$f":"IF(WEEKDAY(Kalendertag)=WochenanfangWert,CONCATENATE(\"Woche \",WEEKNUM(Kalendertag),\"/Tag \",Kalendertag-DATE(YEAR(Kalendertag),1,0)),CONCATENATE(\"Tag \",Kalendertag-DATE(YEAR(Kalendertag),1,0)))","v":"Tag 13"}]
[]
[null,null,{"$f":"TageUndWochen+DATE(Kalenderjahr,1,1)-WEEKDAY(DATE(Kalenderjahr,1,1),(Wochenanfang=\"MO\")+1)+15","v":"2018-01-14"},"2018-01-15","2018-01-16","2018-01-17","2018-01-18","2018-01-19","2018-01-20"]
[null,null,{"$f":"IF(WEEKDAY(Kalendertag)=WochenanfangWert,CONCATENATE(\"Woche \",WEEKNUM(Kalendertag),\"/Tag \",Kalendertag-DATE(YEAR(Kalendertag),1,0)),CONCATENATE(\"Tag \",Kalendertag-DATE(YEAR(Kalendertag),1,0)))","v":"Woche 3/Tag 14"},{"$f":"IF(WEEKDAY(Kalendertag)=WochenanfangWert,CONCATENATE(\"Woche \",WEEKNUM(Kalendertag),\"/Tag \",Kalendertag-DATE(YEAR(Kalendertag),1,0)),CONCATENATE(\"Tag \",Kalendertag-DATE(YEAR(Kalendertag),1,0)))","v":"Tag 15"},{"$f":"IF(WEEKDAY(Kalendertag)=WochenanfangWert,CONCATENATE(\"Woche \",WEEKNUM(Kalendertag),\"/Tag \",Kalendertag-DATE(YEAR(Kalendertag),1,0)),CONCATENATE(\"Tag \",Kalendertag-DATE(YEAR(Kalendertag),1,0)))","v":"Tag 16"},{"$f":"IF(WEEKDAY(Kalendertag)=WochenanfangWert,CONCATENATE(\"Woche \",WEEKNUM(Kalendertag),\"/Tag \",Kalendertag-DATE(YEAR(Kalendertag),1,0)),CONCATENATE(\"Tag \",Kalendertag-DATE(YEAR(Kalendertag),1,0)))","v":"Tag 17"},{"$f":"IF(WEEKDAY(Kalendertag)=WochenanfangWert,CONCATENATE(\"Woche \",WEEKNUM(Kalendertag),\"/Tag \",Kalendertag-DATE(YEAR(Kalendertag),1,0)),CONCATENATE(\"Tag \",Kalendertag-DATE(YEAR(Kalendertag),1,0)))","v":"Tag 18"},{"$f":"IF(WEEKDAY(Kalendertag)=WochenanfangWert,CONCATENATE(\"Woche \",WEEKNUM(Kalendertag),\"/Tag \",Kalendertag-DATE(YEAR(Kalendertag),1,0)),CONCATENATE(\"Tag \",Kalendertag-DATE(YEAR(Kalendertag),1,0)))","v":"Tag 19"},{"$f":"IF(WEEKDAY(Kalendertag)=WochenanfangWert,CONCATENATE(\"Woche \",WEEKNUM(Kalendertag),\"/Tag \",Kalendertag-DATE(YEAR(Kalendertag),1,0)),CONCATENATE(\"Tag \",Kalendertag-DATE(YEAR(Kalendertag),1,0)))","v":"Tag 20"}]
[]
[null,null,{"$f":"TageUndWochen+DATE(Kalenderjahr,1,1)-WEEKDAY(DATE(Kalenderjahr,1,1),(Wochenanfang=\"MO\")+1)+22","v":"2018-01-21"},"2018-01-22","2018-01-23","2018-01-24","2018-01-25","2018-01-26","2018-01-27"]
[null,null,{"$f":"IF(WEEKDAY(Kalendertag)=WochenanfangWert,CONCATENATE(\"Woche \",WEEKNUM(Kalendertag),\"/Tag \",Kalendertag-DATE(YEAR(Kalendertag),1,0)),CONCATENATE(\"Tag \",Kalendertag-DATE(YEAR(Kalendertag),1,0)))","v":"Woche 4/Tag 21"},{"$f":"IF(WEEKDAY(Kalendertag)=WochenanfangWert,CONCATENATE(\"Woche \",WEEKNUM(Kalendertag),\"/Tag \",Kalendertag-DATE(YEAR(Kalendertag),1,0)),CONCATENATE(\"Tag \",Kalendertag-DATE(YEAR(Kalendertag),1,0)))","v":"Tag 22"},{"$f":"IF(WEEKDAY(Kalendertag)=WochenanfangWert,CONCATENATE(\"Woche \",WEEKNUM(Kalendertag),\"/Tag \",Kalendertag-DATE(YEAR(Kalendertag),1,0)),CONCATENATE(\"Tag \",Kalendertag-DATE(YEAR(Kalendertag),1,0)))","v":"Tag 23"},{"$f":"IF(WEEKDAY(Kalendertag)=WochenanfangWert,CONCATENATE(\"Woche \",WEEKNUM(Kalendertag),\"/Tag \",Kalendertag-DATE(YEAR(Kalendertag),1,0)),CONCATENATE(\"Tag \",Kalendertag-DATE(YEAR(Kalendertag),1,0)))","v":"Tag 24"},{"$f":"IF(WEEKDAY(Kalendertag)=WochenanfangWert,CONCATENATE(\"Woche \",WEEKNUM(Kalendertag),\"/Tag \",Kalendertag-DATE(YEAR(Kalendertag),1,0)),CONCATENATE(\"Tag \",Kalendertag-DATE(YEAR(Kalendertag),1,0)))","v":"Tag 25"},{"$f":"IF(WEEKDAY(Kalendertag)=WochenanfangWert,CONCATENATE(\"Woche \",WEEKNUM(Kalendertag),\"/Tag \",Kalendertag-DATE(YEAR(Kalendertag),1,0)),CONCATENATE(\"Tag \",Kalendertag-DATE(YEAR(Kalendertag),1,0)))","v":"Tag 26"},{"$f":"IF(WEEKDAY(Kalendertag)=WochenanfangWert,CONCATENATE(\"Woche \",WEEKNUM(Kalendertag),\"/Tag \",Kalendertag-DATE(YEAR(Kalendertag),1,0)),CONCATENATE(\"Tag \",Kalendertag-DATE(YEAR(Kalendertag),1,0)))","v":"Tag 27"}]
[]
[null,null,{"$f":"TageUndWochen+DATE(Kalenderjahr,1,1)-WEEKDAY(DATE(Kalenderjahr,1,1),(Wochenanfang=\"MO\")+1)+29","v":"2018-01-28"},"2018-01-29","2018-01-30","2018-01-31","2018-02-01","2018-02-02","2018-02-03"]
[null,null,{"$f":"IF(WEEKDAY(Kalendertag)=WochenanfangWert,CONCATENATE(\"Woche \",WEEKNUM(Kalendertag),\"/Tag \",Kalendertag-DATE(YEAR(Kalendertag),1,0)),CONCATENATE(\"Tag \",Kalendertag-DATE(YEAR(Kalendertag),1,0)))","v":"Woche 5/Tag 28"},{"$f":"IF(WEEKDAY(Kalendertag)=WochenanfangWert,CONCATENATE(\"Woche \",WEEKNUM(Kalendertag),\"/Tag \",Kalendertag-DATE(YEAR(Kalendertag),1,0)),CONCATENATE(\"Tag \",Kalendertag-DATE(YEAR(Kalendertag),1,0)))","v":"Tag 29"},{"$f":"IF(WEEKDAY(Kalendertag)=WochenanfangWert,CONCATENATE(\"Woche \",WEEKNUM(Kalendertag),\"/Tag \",Kalendertag-DATE(YEAR(Kalendertag),1,0)),CONCATENATE(\"Tag \",Kalendertag-DATE(YEAR(Kalendertag),1,0)))","v":"Tag 30"},{"$f":"IF(WEEKDAY(Kalendertag)=WochenanfangWert,CONCATENATE(\"Woche \",WEEKNUM(Kalendertag),\"/Tag \",Kalendertag-DATE(YEAR(Kalendertag),1,0)),CONCATENATE(\"Tag \",Kalendertag-DATE(YEAR(Kalendertag),1,0)))","v":"Tag 31"},{"$f":"IF(WEEKDAY(Kalendertag)=WochenanfangWert,CONCATENATE(\"Woche \",WEEKNUM(Kalendertag),\"/Tag \",Kalendertag-DATE(YEAR(Kalendertag),1,0)),CONCATENATE(\"Tag \",Kalendertag-DATE(YEAR(Kalendertag),1,0)))","v":"Tag 32"},{"$f":"IF(WEEKDAY(Kalendertag)=WochenanfangWert,CONCATENATE(\"Woche \",WEEKNUM(Kalendertag),\"/Tag \",Kalendertag-DATE(YEAR(Kalendertag),1,0)),CONCATENATE(\"Tag \",Kalendertag-DATE(YEAR(Kalendertag),1,0)))","v":"Tag 33"},{"$f":"IF(WEEKDAY(Kalendertag)=WochenanfangWert,CONCATENATE(\"Woche \",WEEKNUM(Kalendertag),\"/Tag \",Kalendertag-DATE(YEAR(Kalendertag),1,0)),CONCATENATE(\"Tag \",Kalendertag-DATE(YEAR(Kalendertag),1,0)))","v":"Tag 34"}]
[{"$nulls":4},"NOTIZEN"]
[]
[null,null,{"$f":"TageUndWochen+DATE(Kalenderjahr,1,1)-WEEKDAY(DATE(Kalenderjahr,1,1),(Wochenanfang=\"MO\")+1)+36","v":"2018-02-04"},"2018-02-05"]
[null,null,{"$f":"IF(WEEKDAY(Kalendertag)=WochenanfangWert,CONCATENATE(\"Woche \",WEEKNUM(Kalendertag),\"/Tag \",Kalendertag-DATE(YEAR(Kalendertag),1,0)),CONCATENATE(\"Tag \",Kalendertag-DATE(YEAR(Kalendertag),1,0)))","v":"Woche 6/Tag 35"},{"$f":"IF(WEEKDAY(Kalendertag)=WochenanfangWert,CONCATENATE(\"Woche \",WEEKNUM(Kalendertag),\"/Tag \",Kalendertag-DATE(YEAR(Kalendertag),1,0)),CONCATENATE(\"Tag \",Kalendertag-DATE(YEAR(Kalendertag),1,0)))","v":"Tag 36"}]

{"sheet":"FEB","index":1,"n_rows":20,"n_cols":9,"rows_kept":20,"merged":[[16,2,17,2],[17,4,19,8]]}
[null,"FEB",{"$f":"UPPER(TEXT(Wochenanfang,\"ddd\"))","v":"SO"},{"$f":"UPPER(TEXT(D3,\"aaa\"))","v":"MO"},"DI","MI","DO","FR","SA"]
[null,{"$f":"Kalenderjahr","v":2018}]
[null,null,{"$f":"TageUndWochen+DATE(Kalenderjahr,2,1)-WEEKDAY(DATE(Kalenderjahr,2,1),(Wochenanfang=\"MO\")+1)+1","v":"2018-01-28"},"2018-01-29","2018-01-30","2018-01-31","2018-02-01","2018-02-02","2018-02-03"]
[null,null,{"$f":"IF(DAY(Kalendertag)=1,CONCATENATE(\"Woche \",WEEKNUM(Kalendertag),\"/Tag \",Kalendertag-DATE(YEAR(Kalendertag),1,0)),CONCATENATE(\"Tag \",Kalendertag-DATE(YEAR(Kalendertag),1,0)))","v":"Tag 28"},{"$f":"IF(DAY(Kalendertag)=1,CONCATENATE(\"Woche \",WEEKNUM(Kalendertag),\"/Tag \",Kalendertag-DATE(YEAR(Kalendertag),1,0)),CONCATENATE(\"Tag \",Kalendertag-DATE(YEAR(Kalendertag),1,0)))","v":"Tag 29"},{"$f":"IF(DAY(Kalendertag)=1,CONCATENATE(\"Woche \",WEEKNUM(Kalendertag),\"/Tag \",Kalendertag-DATE(YEAR(Kalendertag),1,0)),CONCATENATE(\"Tag \",Kalendertag-DATE(YEAR(Kalendertag),1,0)))","v":"Tag 30"},{"$f":"IF(DAY(Kalendertag)=1,CONCATENATE(\"Woche \",WEEKNUM(Kalendertag),\"/Tag \",Kalendertag-DATE(YEAR(Kalendertag),1,0)),CONCATENATE(\"Tag \",Kalendertag-DATE(YEAR(Kalendertag),1,0)))","v":"Tag 31"},{"$f":"IF(DAY(Kalendertag)=1,CONCATENATE(\"Woche \",WEEKNUM(Kalendertag),\"/Tag \",Kalendertag-DATE(YEAR(Kalendertag),1,0)),CONCATENATE(\"Tag \",Kalendertag-DATE(YEAR(Kalendertag),1,0)))","v":"Woche 5/Tag 32"},{"$f":"IF(DAY(Kalendertag)=1,CONCATENATE(\"Woche \",WEEKNUM(Kalendertag),\"/Tag \",Kalendertag-DATE(YEAR(Kalendertag),1,0)),CONCATENATE(\"Tag \",Kalendertag-DATE(YEAR(Kalendertag),1,0)))","v":"Tag 33"},{"$f":"IF(DAY(Kalendertag)=1,CONCATENATE(\"Woche \",WEEKNUM(Kalendertag),\"/Tag \",Kalendertag-DATE(YEAR(Kalendertag),1,0)),CONCATENATE(\"Tag \",Kalendertag-DATE(YEAR(Kalendertag),1,0)))","v":"Tag 34"}]
[]
[null,null,{"$f":"TageUndWochen+DATE(Kalenderjahr,2,1)-WEEKDAY(DATE(Kalenderjahr,2,1),(Wochenanfang=\"MO\")+1)+8","v":"2018-02-04"},"2018-02-05","2018-02-06","2018-02-07","2018-02-08","2018-02-09","2018-02-10"]
[null,null,{"$f":"IF(WEEKDAY(Kalendertag)=WochenanfangWert,CONCATENATE(\"Woche \",WEEKNUM(Kalendertag),\"/Tag \",Kalendertag-DATE(YEAR(Kalendertag),1,0)),CONCATENATE(\"Tag \",Kalendertag-DATE(YEAR(Kalendertag),1,0)))","v":"Woche 6/Tag 35"},{"$f":"IF(WEEKDAY(Kalendertag)=WochenanfangWert,CONCATENATE(\"Woche \",WEEKNUM(Kalendertag),\"/Tag \",Kalendertag-DATE(YEAR(Kalendertag),1,0)),CONCATENATE(\"Tag \",Kalendertag-DATE(YEAR(Kalendertag),1,0)))","v":"Tag 36"},{"$f":"IF(WEEKDAY(Kalendertag)=WochenanfangWert,CONCATENATE(\"Woche \",WEEKNUM(Kalendertag),\"/Tag \",Kalendertag-DATE(YEAR(Kalendertag),1,0)),CONCATENATE(\"Tag \",Kalendertag-DATE(YEAR(Kalendertag),1,0)))","v":"Tag 37"},{"$f":"IF(WEEKDAY(Kalendertag)=WochenanfangWert,CONCATENATE(\"Woche \",WEEKNUM(Kalendertag),\"/Tag \",Kalendertag-DATE(YEAR(Kalendertag),1,0)),CONCATENATE(\"Tag \",Kalendertag-DATE(YEAR(Kalendertag),1,0)))","v":"Tag 38"},{"$f":"IF(WEEKDAY(Kalendertag)=WochenanfangWert,CONCATENATE(\"Woche \",WEEKNUM(Kalendertag),\"/Tag \",Kalendertag-DATE(YEAR(Kalendertag),1,0)),CONCATENATE(\"Tag \",Kalendertag-DATE(YEAR(Kalendertag),1,0)))","v":"Tag 39"},{"$f":"IF(WEEKDAY(Kalendertag)=WochenanfangWert,CONCATENATE(\"Woche \",WEEKNUM(Kalendertag),\"/Tag \",Kalendertag-DATE(YEAR(Kalendertag),1,0)),CONCATENATE(\"Tag \",Kalendertag-DATE(YEAR(Kalendertag),1,0)))","v":"Tag 40"},{"$f":"IF(WEEKDAY(Kalendertag)=WochenanfangWert,CONCATENATE(\"Woche \",WEEKNUM(Kalendertag),\"/Tag \",Kalendertag-DATE(YEAR(Kalendertag),1,0)),CONCATENATE(\"Tag \",Kalendertag-DATE(YEAR(Kalendertag),1,0)))","v":"Tag 41"}]
[]
[null,null,{"$f":"TageUndWochen+DATE(Kalenderjahr,2,1)-WEEKDAY(DATE(Kalenderjahr,2,1),(Wochenanfang=\"MO\")+1)+15","v":"2018-02-11"},"2018-02-12","2018-02-13","2018-02-14","2018-02-15","2018-02-16","2018-02-17"]
[null,null,{"$f":"IF(WEEKDAY(Kalendertag)=WochenanfangWert,CONCATENATE(\"Woche \",WEEKNUM(Kalendertag),\"/Tag \",Kalendertag-DATE(YEAR(Kalendertag),1,0)),CONCATENATE(\"Tag \",Kalendertag-DATE(YEAR(Kalendertag),1,0)))","v":"Woche 7/Tag 42"},{"$f":"IF(WEEKDAY(Kalendertag)=WochenanfangWert,CONCATENATE(\"Woche \",WEEKNUM(Kalendertag),\"/Tag \",Kalendertag-DATE(YEAR(Kalendertag),1,0)),CONCATENATE(\"Tag \",Kalendertag-DATE(YEAR(Kalendertag),1,0)))","v":"Tag 43"},{"$f":"IF(WEEKDAY(Kalendertag)=WochenanfangWert,CONCATENATE(\"Woche \",WEEKNUM(Kalendertag),\"/Tag \",Kalendertag-DATE(YEAR(Kalendertag),1,0)),CONCATENATE(\"Tag \",Kalendertag-DATE(YEAR(Kalendertag),1,0)))","v":"Tag 44"},{"$f":"IF(WEEKDAY(Kalendertag)=WochenanfangWert,CONCATENATE(\"Woche \",WEEKNUM(Kalendertag),\"/Tag \",Kalendertag-DATE(YEAR(Kalendertag),1,0)),CONCATENATE(\"Tag \",Kalendertag-DATE(YEAR(Kalendertag),1,0)))","v":"Tag 45"},{"$f":"IF(WEEKDAY(Kalendertag)=WochenanfangWert,CONCATENATE(\"Woche \",WEEKNUM(Kalendertag),\"/Tag \",Kalendertag-DATE(YEAR(Kalendertag),1,0)),CONCATENATE(\"Tag \",Kalendertag-DATE(YEAR(Kalendertag),1,0)))","v":"Tag 46"},{"$f":"IF(WEEKDAY(Kalendertag)=WochenanfangWert,CONCATENATE(\"Woche \",WEEKNUM(Kalendertag),\"/Tag \",Kalendertag-DATE(YEAR(Kalendertag),1,0)),CONCATENATE(\"Tag \",Kalendertag-DATE(YEAR(Kalendertag),1,0)))","v":"Tag 47"},{"$f":"IF(WEEKDAY(Kalendertag)=WochenanfangWert,CONCATENATE(\"Woche \",WEEKNUM(Kalendertag),\"/Tag \",Kalendertag-DATE(YEAR(Kalendertag),1,0)),CONCATENATE(\"Tag \",Kalendertag-DATE(YEAR(Kalendertag),1,0)))","v":"Tag 48"}]
[]
[null,null,{"$f":"TageUndWochen+DATE(Kalenderjahr,2,1)-WEEKDAY(DATE(Kalenderjahr,2,1),(Wochenanfang=\"MO\")+1)+22","v":"2018-02-18"},"2018-02-19","2018-02-20","2018-02-21","2018-02-22","2018-02-23","2018-02-24"]
[null,null,{"$f":"IF(WEEKDAY(Kalendertag)=WochenanfangWert,CONCATENATE(\"Woche \",WEEKNUM(Kalendertag),\"/Tag \",Kalendertag-DATE(YEAR(Kalendertag),1,0)),CONCATENATE(\"Tag \",Kalendertag-DATE(YEAR(Kalendertag),1,0)))","v":"Woche 8/Tag 49"},{"$f":"IF(WEEKDAY(Kalendertag)=WochenanfangWert,CONCATENATE(\"Woche \",WEEKNUM(Kalendertag),\"/Tag \",Kalendertag-DATE(YEAR(Kalendertag),1,0)),CONCATENATE(\"Tag \",Kalendertag-DATE(YEAR(Kalendertag),1,0)))","v":"Tag 50"},{"$f":"IF(WEEKDAY(Kalendertag)=WochenanfangWert,CONCATENATE(\"Woche \",WEEKNUM(Kalendertag),\"/Tag \",Kalendertag-DATE(YEAR(Kalendertag),1,0)),CONCATENATE(\"Tag \",Kalendertag-DATE(YEAR(Kalendertag),1,0)))","v":"Tag 51"},{"$f":"IF(WEEKDAY(Kalendertag)=WochenanfangWert,CONCATENATE(\"Woche \",WEEKNUM(Kalendertag),\"/Tag \",Kalendertag-DATE(YEAR(Kalendertag),1,0)),CONCATENATE(\"Tag \",Kalendertag-DATE(YEAR(Kalendertag),1,0)))","v":"Tag 52"},{"$f":"IF(WEEKDAY(Kalendertag)=WochenanfangWert,CONCATENATE(\"Woche \",WEEKNUM(Kalendertag),\"/Tag \",Kalendertag-DATE(YEAR(Kalendertag),1,0)),CONCATENATE(\"Tag \",Kalendertag-DATE(YEAR(Kalendertag),1,0)))","v":"Tag 53"},{"$f":"IF(WEEKDAY(Kalendertag)=WochenanfangWert,CONCATENATE(\"Woche \",WEEKNUM(Kalendertag),\"/Tag \",Kalendertag-DATE(YEAR(Kalendertag),1,0)),CONCATENATE(\"Tag \",Kalendertag-DATE(YEAR(Kalendertag),1,0)))","v":"Tag 54"},{"$f":"IF(WEEKDAY(Kalendertag)=WochenanfangWert,CONCATENATE(\"Woche \",WEEKNUM(Kalendertag),\"/Tag \",Kalendertag-DATE(YEAR(Kalendertag),1,0)),CONCATENATE(\"Tag \",Kalendertag-DATE(YEAR(Kalendertag),1,0)))","v":"Tag 55"}]
[]
[null,null,{"$f":"TageUndWochen+DATE(Kalenderjahr,2,1)-WEEKDAY(DATE(Kalenderjahr,2,1),(Wochenanfang=\"MO\")+1)+29","v":"2018-02-25"},"2018-02-26","2018-02-27","2018-02-28","2018-03-01","2018-03-02","2018-03-03"]
[null,null,{"$f":"IF(WEEKDAY(Kalendertag)=WochenanfangWert,CONCATENATE(\"Woche \",WEEKNUM(Kalendertag),\"/Tag \",Kalendertag-DATE(YEAR(Kalendertag),1,0)),CONCATENATE(\"Tag \",Kalendertag-DATE(YEAR(Kalendertag),1,0)))","v":"Woche 9/Tag 56"},{"$f":"IF(WEEKDAY(Kalendertag)=WochenanfangWert,CONCATENATE(\"Woche \",WEEKNUM(Kalendertag),\"/Tag \",Kalendertag-DATE(YEAR(Kalendertag),1,0)),CONCATENATE(\"Tag \",Kalendertag-DATE(YEAR(Kalendertag),1,0)))","v":"Tag 57"},{"$f":"IF(WEEKDAY(Kalendertag)=WochenanfangWert,CONCATENATE(\"Woche \",WEEKNUM(Kalendertag),\"/Tag \",Kalendertag-DATE(YEAR(Kalendertag),1,0)),CONCATENATE(\"Tag \",Kalendertag-DATE(YEAR(Kalendertag),1,0)))","v":"Tag 58"},{"$f":"IF(WEEKDAY(Kalendertag)=WochenanfangWert,CONCATENATE(\"Woche \",WEEKNUM(Kalendertag),\"/Tag \",Kalendertag-DATE(YEAR(Kalendertag),1,0)),CONCATENATE(\"Tag \",Kalendertag-DATE(YEAR(Kalendertag),1,0)))","v":"Tag 59"},{"$f":"IF(WEEKDAY(Kalendertag)=WochenanfangWert,CONCATENATE(\"Woche \",WEEKNUM(Kalendertag),\"/Tag \",Kalendertag-DATE(YEAR(Kalendertag),1,0)),CONCATENATE(\"Tag \",Kalendertag-DATE(YEAR(Kalendertag),1,0)))","v":"Tag 60"},{"$f":"IF(WEEKDAY(Kalendertag)=WochenanfangWert,CONCATENATE(\"Woche \",WEEKNUM(Kalendertag),\"/Tag \",Kalendertag-DATE(YEAR(Kalendertag),1,0)),CONCATENATE(\"Tag \",Kalendertag-DATE(YEAR(Kalendertag),1,0)))","v":"Tag 61"},{"$f":"IF(WEEKDAY(Kalendertag)=WochenanfangWert,CONCATENATE(\"Woche \",WEEKNUM(Kalendertag),\"/Tag \",Kalendertag-DATE(YEAR(Kalendertag),1,0)),CONCATENATE(\"Tag \",Kalendertag-DATE(YEAR(Kalendertag),1,0)))","v":"Tag 62"}]
[{"$nulls":4},"NOTIZEN"]
[]
[null,null,{"$f":"TageUndWochen+DATE(Kalenderjahr,2,1)-WEEKDAY(DATE(Kalenderjahr,2,1),(Wochenanfang=\"MO\")+1)+36","v":"2018-03-04"},"2018-03-05"]
[null,null,{"$f":"IF(WEEKDAY(Kalendertag)=WochenanfangWert,CONCATENATE(\"Woche \",WEEKNUM(Kalendertag),\"/Tag \",Kalendertag-DATE(YEAR(Kalendertag),1,0)),CONCATENATE(\"Tag \",Kalendertag-DATE(YEAR(Kalendertag),1,0)))","v":"Woche 10/Tag 63"},{"$f":"IF(WEEKDAY(Kalendertag)=WochenanfangWert,CONCATENATE(\"Woche \",WEEKNUM(Kalendertag),\"/Tag \",Kalendertag-DATE(YEAR(Kalendertag),1,0)),CONCATENATE(\"Tag \",Kalendertag-DATE(YEAR(Kalendertag),1,0)))","v":"Tag 64"}]

{"sheet":"MRZ","index":2,"n_rows":20,"n_cols":9,"rows_kept":20,"merged":[[16,2,17,2],[17,4,19,8]]}
[null,"MRZ",{"$f":"UPPER(TEXT(Wochenanfang,\"ddd\"))","v":"SO"},{"$f":"UPPER(TEXT(D3,\"aaa\"))","v":"MO"},"DI","MI","DO","FR","SA"]
[null,{"$f":"Kalenderjahr","v":2018}]
[null,null,{"$f":"TageUndWochen+DATE(Kalenderjahr,3,1)-WEEKDAY(DATE(Kalenderjahr,3,1),(Wochenanfang=\"MO\")+1)+1","v":"2018-02-25"},"2018-02-26","2018-02-27","2018-02-28","2018-03-01","2018-03-02","2018-03-03"]
[null,null,{"$f":"IF(DAY(Kalendertag)=1,CONCATENATE(\"Woche \",WEEKNUM(Kalendertag),\"/Tag \",Kalendertag-DATE(YEAR(Kalendertag),1,0)),CONCATENATE(\"Tag \",Kalendertag-DATE(YEAR(Kalendertag),1,0)))","v":"Tag 56"},{"$f":"IF(DAY(Kalendertag)=1,CONCATENATE(\"Woche \",WEEKNUM(Kalendertag),\"/Tag \",Kalendertag-DATE(YEAR(Kalendertag),1,0)),CONCATENATE(\"Tag \",Kalendertag-DATE(YEAR(Kalendertag),1,0)))","v":"Tag 57"},{"$f":"IF(DAY(Kalendertag)=1,CONCATENATE(\"Woche \",WEEKNUM(Kalendertag),\"/Tag \",Kalendertag-DATE(YEAR(Kalendertag),1,0)),CONCATENATE(\"Tag \",Kalendertag-DATE(YEAR(Kalendertag),1,0)))","v":"Tag 58"},{"$f":"IF(DAY(Kalendertag)=1,CONCATENATE(\"Woche \",WEEKNUM(Kalendertag),\"/Tag \",Kalendertag-DATE(YEAR(Kalendertag),1,0)),CONCATENATE(\"Tag \",Kalendertag-DATE(YEAR(Kalendertag),1,0)))","v":"Tag 59"},{"$f":"IF(DAY(Kalendertag)=1,CONCATENATE(\"Woche \",WEEKNUM(Kalendertag),\"/Tag \",Kalendertag-DATE(YEAR(Kalendertag),1,0)),CONCATENATE(\"Tag \",Kalendertag-DATE(YEAR(Kalendertag),1,0)))","v":"Woche 9/Tag 60"},{"$f":"IF(DAY(Kalendertag)=1,CONCATENATE(\"Woche \",WEEKNUM(Kalendertag),\"/Tag \",Kalendertag-DATE(YEAR(Kalendertag),1,0)),CONCATENATE(\"Tag \",Kalendertag-DATE(YEAR(Kalendertag),1,0)))","v":"Tag 61"},{"$f":"IF(DAY(Kalendertag)=1,CONCATENATE(\"Woche \",WEEKNUM(Kalendertag),\"/Tag \",Kalendertag-DATE(YEAR(Kalendertag),1,0)),CONCATENATE(\"Tag \",Kalendertag-DATE(YEAR(Kalendertag),1,0)))","v":"Tag 62"}]
[]
[null,null,{"$f":"TageUndWochen+DATE(Kalenderjahr,3,1)-WEEKDAY(DATE(Kalenderjahr,3,1),(Wochenanfang=\"MO\")+1)+8","v":"2018-03-04"},"2018-03-05","2018-03-06","2018-03-07","2018-03-08","2018-03-09","2018-03-10"]
[null,null,{"$f":"IF(WEEKDAY(Kalendertag)=WochenanfangWert,CONCATENATE(\"Woche \",WEEKNUM(Kalendertag),\"/Tag \",Kalendertag-DATE(YEAR(Kalendertag),1,0)),CONCATENATE(\"Tag \",Kalendertag-DATE(YEAR(Kalendertag),1,0)))","v":"Woche 10/Tag 63"},{"$f":"IF(WEEKDAY(Kalendertag)=WochenanfangWert,CONCATENATE(\"Woche \",WEEKNUM(Kalendertag),\"/Tag \",Kalendertag-DATE(YEAR(Kalendertag),1,0)),CONCATENATE(\"Tag \",Kalendertag-DATE(YEAR(Kalendertag),1,0)))","v":"Tag 64"},{"$f":"IF(WEEKDAY(Kalendertag)=WochenanfangWert,CONCATENATE(\"Woche \",WEEKNUM(Kalendertag),\"/Tag \",Kalendertag-DATE(YEAR(Kalendertag),1,0)),CONCATENATE(\"Tag \",Kalendertag-DATE(YEAR(Kalendertag),1,0)))","v":"Tag 65"},{"$f":"IF(WEEKDAY(Kalendertag)=WochenanfangWert,CONCATENATE(\"Woche \",WEEKNUM(Kalendertag),\"/Tag \",Kalendertag-DATE(YEAR(Kalendertag),1,0)),CONCATENATE(\"Tag \",Kalendertag-DATE(YEAR(Kalendertag),1,0)))","v":"Tag 66"},{"$f":"IF(WEEKDAY(Kalendertag)=WochenanfangWert,CONCATENATE(\"Woche \",WEEKNUM(Kalendertag),\"/Tag \",Kalendertag-DATE(YEAR(Kalendertag),1,0)),CONCATENATE(\"Tag \",Kalendertag-DATE(YEAR(Kalendertag),1,0)))","v":"Tag 67"},{"$f":"IF(WEEKDAY(Kalendertag)=WochenanfangWert,CONCATENATE(\"Woche \",WEEKNUM(Kalendertag),\"/Tag \",Kalendertag-DATE(YEAR(Kalendertag),1,0)),CONCATENATE(\"Tag \",Kalendertag-DATE(YEAR(Kalendertag),1,0)))","v":"Tag 68"},{"$f":"IF(WEEKDAY(Kalendertag)=WochenanfangWert,CONCATENATE(\"Woche \",WEEKNUM(Kalendertag),\"/Tag \",Kalendertag-DATE(YEAR(Kalendertag),1,0)),CONCATENATE(\"Tag \",Kalendertag-DATE(YEAR(Kalendertag),1,0)))","v":"Tag 69"}]
[]
[null,null,{"$f":"TageUndWochen+DATE(Kalenderjahr,3,1)-WEEKDAY(DATE(Kalenderjahr,3,1),(Wochenanfang=\"MO\")+1)+15","v":"2018-03-11"},"2018-03-12","2018-03-13","2018-03-14","2018-03-15","2018-03-16","2018-03-17"]
[null,null,{"$f":"IF(WEEKDAY(Kalendertag)=WochenanfangWert,CONCATENATE(\"Woche \",WEEKNUM(Kalendertag),\"/Tag \",Kalendertag-DATE(YEAR(Kalendertag),1,0)),CONCATENATE(\"Tag \",Kalendertag-DATE(YEAR(Kalendertag),1,0)))","v":"Woche 11/Tag 70"},{"$f":"IF(WEEKDAY(Kalendertag)=WochenanfangWert,CONCATENATE(\"Woche \",WEEKNUM(Kalendertag),\"/Tag \",Kalendertag-DATE(YEAR(Kalendertag),1,0)),CONCATENATE(\"Tag \",Kalendertag-DATE(YEAR(Kalendertag),1,0)))","v":"Tag 71"},{"$f":"IF(WEEKDAY(Kalendertag)=WochenanfangWert,CONCATENATE(\"Woche \",WEEKNUM(Kalendertag),\"/Tag \",Kalendertag-DATE(YEAR(Kalendertag),1,0)),CONCATENATE(\"Tag \",Kalendertag-DATE(YEAR(Kalendertag),1,0)))","v":"Tag 72"},{"$f":"IF(WEEKDAY(Kalendertag)=WochenanfangWert,CONCATENATE(\"Woche \",WEEKNUM(Kalendertag),\"/Tag \",Kalendertag-DATE(YEAR(Kalendertag),1,0)),CONCATENATE(\"Tag \",Kalendertag-DATE(YEAR(Kalendertag),1,0)))","v":"Tag 73"},{"$f":"IF(WEEKDAY(Kalendertag)=WochenanfangWert,CONCATENATE(\"Woche \",WEEKNUM(Kalendertag),\"/Tag \",Kalendertag-DATE(YEAR(Kalendertag),1,0)),CONCATENATE(\"Tag \",Kalendertag-DATE(YEAR(Kalendertag),1,0)))","v":"Tag 74"},{"$f":"IF(WEEKDAY(Kalendertag)=WochenanfangWert,CONCATENATE(\"Woche \",WEEKNUM(Kalendertag),\"/Tag \",Kalendertag-DATE(YEAR(Kalendertag),1,0)),CONCATENATE(\"Tag \",Kalendertag-DATE(YEAR(Kalendertag),1,0)))","v":"Tag 75"},{"$f":"IF(WEEKDAY(Kalendertag)=WochenanfangWert,CONCATENATE(\"Woche \",WEEKNUM(Kalendertag),\"/Tag \",Kalendertag-DATE(YEAR(Kalendertag),1,0)),CONCATENATE(\"Tag \",Kalendertag-DATE(YEAR(Kalendertag),1,0)))","v":"Tag 76"}]
[]
[null,null,{"$f":"TageUndWochen+DATE(Kalenderjahr,3,1)-WEEKDAY(DATE(Kalenderjahr,3,1),(Wochenanfang=\"MO\")+1)+22","v":"2018-03-18"},"2018-03-19","2018-03-20","2018-03-21","2018-03-22","2018-03-23","2018-03-24"]
[null,null,{"$f":"IF(WEEKDAY(Kalendertag)=WochenanfangWert,CONCATENATE(\"Woche \",WEEKNUM(Kalendertag),\"/Tag \",Kalendertag-DATE(YEAR(Kalendertag),1,0)),CONCATENATE(\"Tag \",Kalendertag-DATE(YEAR(Kalendertag),1,0)))","v":"Woche 12/Tag 77"},{"$f":"IF(WEEKDAY(Kalendertag)=WochenanfangWert,CONCATENATE(\"Woche \",WEEKNUM(Kalendertag),\"/Tag \",Kalendertag-DATE(YEAR(Kalendertag),1,0)),CONCATENATE(\"Tag \",Kalendertag-DATE(YEAR(Kalendertag),1,0)))","v":"Tag 78"},{"$f":"IF(WEEKDAY(Kalendertag)=WochenanfangWert,CONCATENATE(\"Woche \",WEEKNUM(Kalendertag),\"/Tag \",Kalendertag-DATE(YEAR(Kalendertag),1,0)),CONCATENATE(\"Tag \",Kalendertag-DATE(YEAR(Kalendertag),1,0)))","v":"Tag 79"},{"$f":"IF(WEEKDAY(Kalendertag)=WochenanfangWert,CONCATENATE(\"Woche \",WEEKNUM(Kalendertag),\"/Tag \",Kalendertag-DATE(YEAR(Kalendertag),1,0)),CONCATENATE(\"Tag \",Kalendertag-DATE(YEAR(Kalendertag),1,0)))","v":"Tag 80"},{"$f":"IF(WEEKDAY(Kalendertag)=WochenanfangWert,CONCATENATE(\"Woche \",WEEKNUM(Kalendertag),\"/Tag \",Kalendertag-DATE(YEAR(Kalendertag),1,0)),CONCATENATE(\"Tag \",Kalendertag-DATE(YEAR(Kalendertag),1,0)))","v":"Tag 81"},{"$f":"IF(WEEKDAY(Kalendertag)=WochenanfangWert,CONCATENATE(\"Woche \",WEEKNUM(Kalendertag),\"/Tag \",Kalendertag-DATE(YEAR(Kalendertag),1,0)),CONCATENATE(\"Tag \",Kalendertag-DATE(YEAR(Kalendertag),1,0)))","v":"Tag 82"},{"$f":"IF(WEEKDAY(Kalendertag)=WochenanfangWert,CONCATENATE(\"Woche \",WEEKNUM(Kalendertag),\"/Tag \",Kalendertag-DATE(YEAR(Kalendertag),1,0)),CONCATENATE(\"Tag \",Kalendertag-DATE(YEAR(Kalendertag),1,0)))","v":"Tag 83"}]
[]
[null,null,{"$f":"TageUndWochen+DATE(Kalenderjahr,3,1)-WEEKDAY(DATE(Kalenderjahr,3,1),(Wochenanfang=\"MO\")+1)+29","v":"2018-03-25"},"2018-03-26","2018-03-27","2018-03-28","2018-03-29","2018-03-30","2018-03-31"]
[null,null,{"$f":"IF(WEEKDAY(Kalendertag)=WochenanfangWert,CONCATENATE(\"Woche \",WEEKNUM(Kalendertag),\"/Tag \",Kalendertag-DATE(YEAR(Kalendertag),1,0)),CONCATENATE(\"Tag \",Kalendertag-DATE(YEAR(Kalendertag),1,0)))","v":"Woche 13/Tag 84"},{"$f":"IF(WEEKDAY(Kalendertag)=WochenanfangWert,CONCATENATE(\"Woche \",WEEKNUM(Kalendertag),\"/Tag \",Kalendertag-DATE(YEAR(Kalendertag),1,0)),CONCATENATE(\"Tag \",Kalendertag-DATE(YEAR(Kalendertag),1,0)))","v":"Tag 85"},{"$f":"IF(WEEKDAY(Kalendertag)=WochenanfangWert,CONCATENATE(\"Woche \",WEEKNUM(Kalendertag),\"/Tag \",Kalendertag-DATE(YEAR(Kalendertag),1,0)),CONCATENATE(\"Tag \",Kalendertag-DATE(YEAR(Kalendertag),1,0)))","v":"Tag 86"},{"$f":"IF(WEEKDAY(Kalendertag)=WochenanfangWert,CONCATENATE(\"Woche \",WEEKNUM(Kalendertag),\"/Tag \",Kalendertag-DATE(YEAR(Kalendertag),1,0)),CONCATENATE(\"Tag \",Kalendertag-DATE(YEAR(Kalendertag),1,0)))","v":"Tag 87"},{"$f":"IF(WEEKDAY(Kalendertag)=WochenanfangWert,CONCATENATE(\"Woche \",WEEKNUM(Kalendertag),\"/Tag \",Kalendertag-DATE(YEAR(Kalendertag),1,0)),CONCATENATE(\"Tag \",Kalendertag-DATE(YEAR(Kalendertag),1,0)))","v":"Tag 88"},{"$f":"IF(WEEKDAY(Kalendertag)=WochenanfangWert,CONCATENATE(\"Woche \",WEEKNUM(Kalendertag),\"/Tag \",Kalendertag-DATE(YEAR(Kalendertag),1,0)),CONCATENATE(\"Tag \",Kalendertag-DATE(YEAR(Kalendertag),1,0)))","v":"Tag 89"},{"$f":"IF(WEEKDAY(Kalendertag)=WochenanfangWert,CONCATENATE(\"Woche \",WEEKNUM(Kalendertag),\"/Tag \",Kalendertag-DATE(YEAR(Kalendertag),1,0)),CONCATENATE(\"Tag \",Kalendertag-DATE(YEAR(Kalendertag),1,0)))","v":"Tag 90"}]
[{"$nulls":4},"NOTIZEN"]
[]
[null,null,{"$f":"TageUndWochen+DATE(Kalenderjahr,3,1)-WEEKDAY(DATE(Kalenderjahr,3,1),(Wochenanfang=\"MO\")+1)+36","v":"2018-04-01"},"2018-04-02"]
[null,null,{"$f":"IF(WEEKDAY(Kalendertag)=WochenanfangWert,CONCATENATE(\"Woche \",WEEKNUM(Kalendertag),\"/Tag \",Kalendertag-DATE(YEAR(Kalendertag),1,0)),CONCATENATE(\"Tag \",Kalendertag-DATE(YEAR(Kalendertag),1,0)))","v":"Woche 14/Tag 91"},{"$f":"IF(WEEKDAY(Kalendertag)=WochenanfangWert,CONCATENATE(\"Woche \",WEEKNUM(Kalendertag),\"/Tag \",Kalendertag-DATE(YEAR(Kalendertag),1,0)),CONCATENATE(\"Tag \",Kalendertag-DATE(YEAR(Kalendertag),1,0)))","v":"Tag 92"}]

{"sheet":"APR","index":3,"n_rows":20,"n_cols":9,"rows_kept":20,"merged":[[16,2,17,2],[17,4,19,8]]}
[null,"APR",{"$f":"UPPER(TEXT(Wochenanfang,\"ddd\"))","v":"SO"},{"$f":"UPPER(TEXT(D3,\"aaa\"))","v":"MO"},"DI","MI","DO","FR","SA"]
[null,{"$f":"Kalenderjahr","v":2018}]
[null,null,{"$f":"TageUndWochen+DATE(Kalenderjahr,4,1)-WEEKDAY(DATE(Kalenderjahr,4,1),(Wochenanfang=\"MO\")+1)+1","v":"2018-04-01"},"2018-04-02","2018-04-03","2018-04-04","2018-04-05","2018-04-06","2018-04-07"]
[null,null,{"$f":"IF(DAY(Kalendertag)=1,CONCATENATE(\"Woche \",WEEKNUM(Kalendertag),\"/Tag \",Kalendertag-DATE(YEAR(Kalendertag),1,0)),CONCATENATE(\"Tag \",Kalendertag-DATE(YEAR(Kalendertag),1,0)))","v":"Woche 14/Tag 91"},{"$f":"IF(DAY(Kalendertag)=1,CONCATENATE(\"Woche \",WEEKNUM(Kalendertag),\"/Tag \",Kalendertag-DATE(YEAR(Kalendertag),1,0)),CONCATENATE(\"Tag \",Kalendertag-DATE(YEAR(Kalendertag),1,0)))","v":"Tag 92"},{"$f":"IF(DAY(Kalendertag)=1,CONCATENATE(\"Woche \",WEEKNUM(Kalendertag),\"/Tag \",Kalendertag-DATE(YEAR(Kalendertag),1,0)),CONCATENATE(\"Tag \",Kalendertag-DATE(YEAR(Kalendertag),1,0)))","v":"Tag 93"},{"$f":"IF(DAY(Kalendertag)=1,CONCATENATE(\"Woche \",WEEKNUM(Kalendertag),\"/Tag \",Kalendertag-DATE(YEAR(Kalendertag),1,0)),CONCATENATE(\"Tag \",Kalendertag-DATE(YEAR(Kalendertag),1,0)))","v":"Tag 94"},{"$f":"IF(DAY(Kalendertag)=1,CONCATENATE(\"Woche \",WEEKNUM(Kalendertag),\"/Tag \",Kalendertag-DATE(YEAR(Kalendertag),1,0)),CONCATENATE(\"Tag \",Kalendertag-DATE(YEAR(Kalendertag),1,0)))","v":"Tag 95"},{"$f":"IF(DAY(Kalendertag)=1,CONCATENATE(\"Woche \",WEEKNUM(Kalendertag),\"/Tag \",Kalendertag-DATE(YEAR(Kalendertag),1,0)),CONCATENATE(\"Tag \",Kalendertag-DATE(YEAR(Kalendertag),1,0)))","v":"Tag 96"},{"$f":"IF(DAY(Kalendertag)=1,CONCATENATE(\"Woche \",WEEKNUM(Kalendertag),\"/Tag \",Kalendertag-DATE(YEAR(Kalendertag),1,0)),CONCATENATE(\"Tag \",Kalendertag-DATE(YEAR(Kalendertag),1,0)))","v":"Tag 97"}]
[]
[null,null,{"$f":"TageUndWochen+DATE(Kalenderjahr,4,1)-WEEKDAY(DATE(Kalenderjahr,4,1),(Wochenanfang=\"MO\")+1)+8","v":"2018-04-08"},"2018-04-09","2018-04-10","2018-04-11","2018-04-12","2018-04-13","2018-04-14"]
[null,null,{"$f":"IF(WEEKDAY(Kalendertag)=WochenanfangWert,CONCATENATE(\"Woche \",WEEKNUM(Kalendertag),\"/Tag \",Kalendertag-DATE(YEAR(Kalendertag),1,0)),CONCATENATE(\"Tag \",Kalendertag-DATE(YEAR(Kalendertag),1,0)))","v":"Woche 15/Tag 98"},{"$f":"IF(WEEKDAY(Kalendertag)=WochenanfangWert,CONCATENATE(\"Woche \",WEEKNUM(Kalendertag),\"/Tag \",Kalendertag-DATE(YEAR(Kalendertag),1,0)),CONCATENATE(\"Tag \",Kalendertag-DATE(YEAR(Kalendertag),1,0)))","v":"Tag 99"},{"$f":"IF(WEEKDAY(Kalendertag)=WochenanfangWert,CONCATENATE(\"Woche \",WEEKNUM(Kalendertag),\"/Tag \",Kalendertag-DATE(YEAR(Kalendertag),1,0)),CONCATENATE(\"Tag \",Kalendertag-DATE(YEAR(Kalendertag),1,0)))","v":"Tag 100"},{"$f":"IF(WEEKDAY(Kalendertag)=WochenanfangWert,CONCATENATE(\"Woche \",WEEKNUM(Kalendertag),\"/Tag \",Kalendertag-DATE(YEAR(Kalendertag),1,0)),CONCATENATE(\"Tag \",Kalendertag-DATE(YEAR(Kalendertag),1,0)))","v":"Tag 101"},{"$f":"IF(WEEKDAY(Kalendertag)=WochenanfangWert,CONCATENATE(\"Woche \",WEEKNUM(Kalendertag),\"/Tag \",Kalendertag-DATE(YEAR(Kalendertag),1,0)),CONCATENATE(\"Tag \",Kalendertag-DATE(YEAR(Kalendertag),1,0)))","v":"Tag 102"},{"$f":"IF(WEEKDAY(Kalendertag)=WochenanfangWert,CONCATENATE(\"Woche \",WEEKNUM(Kalendertag),\"/Tag \",Kalendertag-DATE(YEAR(Kalendertag),1,0)),CONCATENATE(\"Tag \",Kalendertag-DATE(YEAR(Kalendertag),1,0)))","v":"Tag 103"},{"$f":"IF(WEEKDAY(Kalendertag)=WochenanfangWert,CONCATENATE(\"Woche \",WEEKNUM(Kalendertag),\"/Tag \",Kalendertag-DATE(YEAR(Kalendertag),1,0)),CONCATENATE(\"Tag \",Kalendertag-DATE(YEAR(Kalendertag),1,0)))","v":"Tag 104"}]
[]
[null,null,{"$f":"TageUndWochen+DATE(Kalenderjahr,4,1)-WEEKDAY(DATE(Kalenderjahr,4,1),(Wochenanfang=\"MO\")+1)+15","v":"2018-04-15"},"2018-04-16","2018-04-17","2018-04-18","2018-04-19","2018-04-20","2018-04-21"]
[null,null,{"$f":"IF(WEEKDAY(Kalendertag)=WochenanfangWert,CONCATENATE(\"Woche \",WEEKNUM(Kalendertag),\"/Tag \",Kalendertag-DATE(YEAR(Kalendertag),1,0)),CONCATENATE(\"Tag \",Kalendertag-DATE(YEAR(Kalendertag),1,0)))","v":"Woche 16/Tag 105"},{"$f":"IF(WEEKDAY(Kalendertag)=WochenanfangWert,CONCATENATE(\"Woche \",WEEKNUM(Kalendertag),\"/Tag \",Kalendertag-DATE(YEAR(Kalendertag),1,0)),CONCATENATE(\"Tag \",Kalendertag-DATE(YEAR(Kalendertag),1,0)))","v":"Tag 106"},{"$f":"IF(WEEKDAY(Kalendertag)=WochenanfangWert,CONCATENATE(\"Woche \",WEEKNUM(Kalendertag),\"/Tag \",Kalendertag-DATE(YEAR(Kalendertag),1,0)),CONCATENATE(\"Tag \",Kalendertag-DATE(YEAR(Kalendertag),1,0)))","v":"Tag 107"},{"$f":"IF(WEEKDAY(Kalendertag)=WochenanfangWert,CONCATENATE(\"Woche \",WEEKNUM(Kalendertag),\"/Tag \",Kalendertag-DATE(YEAR(Kalendertag),1,0)),CONCATENATE(\"Tag \",Kalendertag-DATE(YEAR(Kalendertag),1,0)))","v":"Tag 108"},{"$f":"IF(WEEKDAY(Kalendertag)=WochenanfangWert,CONCATENATE(\"Woche \",WEEKNUM(Kalendertag),\"/Tag \",Kalendertag-DATE(YEAR(Kalendertag),1,0)),CONCATENATE(\"Tag \",Kalendertag-DATE(YEAR(Kalendertag),1,0)))","v":"Tag 109"},{"$f":"IF(WEEKDAY(Kalendertag)=WochenanfangWert,CONCATENATE(\"Woche \",WEEKNUM(Kalendertag),\"/Tag \",Kalendertag-DATE(YEAR(Kalendertag),1,0)),CONCATENATE(\"Tag \",Kalendertag-DATE(YEAR(Kalendertag),1,0)))","v":"Tag 110"},{"$f":"IF(WEEKDAY(Kalendertag)=WochenanfangWert,CONCATENATE(\"Woche \",WEEKNUM(Kalendertag),\"/Tag \",Kalendertag-DATE(YEAR(Kalendertag),1,0)),CONCATENATE(\"Tag \",Kalendertag-DATE(YEAR(Kalendertag),1,0)))","v":"Tag 111"}]
[]
[null,null,{"$f":"TageUndWochen+DATE(Kalenderjahr,4,1)-WEEKDAY(DATE(Kalenderjahr,4,1),(Wochenanfang=\"MO\")+1)+22","v":"2018-04-22"},"2018-04-23","2018-04-24","2018-04-25","2018-04-26","2018-04-27","2018-04-28"]
[null,null,{"$f":"IF(WEEKDAY(Kalendertag)=WochenanfangWert,CONCATENATE(\"Woche \",WEEKNUM(Kalendertag),\"/Tag \",Kalendertag-DATE(YEAR(Kalendertag),1,0)),CONCATENATE(\"Tag \",Kalendertag-DATE(YEAR(Kalendertag),1,0)))","v":"Woche 17/Tag 112"},{"$f":"IF(WEEKDAY(Kalendertag)=WochenanfangWert,CONCATENATE(\"Woche \",WEEKNUM(Kalendertag),\"/Tag \",Kalendertag-DATE(YEAR(Kalendertag),1,0)),CONCATENATE(\"Tag \",Kalendertag-DATE(YEAR(Kalendertag),1,0)))","v":"Tag 113"},{"$f":"IF(WEEKDAY(Kalendertag)=WochenanfangWert,CONCATENATE(\"Woche \",WEEKNUM(Kalendertag),\"/Tag \",Kalendertag-DATE(YEAR(Kalendertag),1,0)),CONCATENATE(\"Tag \",Kalendertag-DATE(YEAR(Kalendertag),1,0)))","v":"Tag 114"},{"$f":"IF(WEEKDAY(Kalendertag)=WochenanfangWert,CONCATENATE(\"Woche \",WEEKNUM(Kalendertag),\"/Tag \",Kalendertag-DATE(YEAR(Kalendertag),1,0)),CONCATENATE(\"Tag \",Kalendertag-DATE(YEAR(Kalendertag),1,0)))","v":"Tag 115"},{"$f":"IF(WEEKDAY(Kalendertag)=WochenanfangWert,CONCATENATE(\"Woche \",WEEKNUM(Kalendertag),\"/Tag \",Kalendertag-DATE(YEAR(Kalendertag),1,0)),CONCATENATE(\"Tag \",Kalendertag-DATE(YEAR(Kalendertag),1,0)))","v":"Tag 116"},{"$f":"IF(WEEKDAY(Kalendertag)=WochenanfangWert,CONCATENATE(\"Woche \",WEEKNUM(Kalendertag),\"/Tag \",Kalendertag-DATE(YEAR(Kalendertag),1,0)),CONCATENATE(\"Tag \",Kalendertag-DATE(YEAR(Kalendertag),1,0)))","v":"Tag 117"},{"$f":"IF(WEEKDAY(Kalendertag)=WochenanfangWert,CONCATENATE(\"Woche \",WEEKNUM(Kalendertag),\"/Tag \",Kalendertag-DATE(YEAR(Kalendertag),1,0)),CONCATENATE(\"Tag \",Kalendertag-DATE(YEAR(Kalendertag),1,0)))","v":"Tag 118"}]
[]
[null,null,{"$f":"TageUndWochen+DATE(Kalenderjahr,4,1)-WEEKDAY(DATE(Kalenderjahr,4,1),(Wochenanfang=\"MO\")+1)+29","v":"2018-04-29"},"2018-04-30","2018-05-01","2018-05-02","2018-05-03","2018-05-04","2018-05-05"]
[null,null,{"$f":"IF(WEEKDAY(Kalendertag)=WochenanfangWert,CONCATENATE(\"Woche \",WEEKNUM(Kalendertag),\"/Tag \",Kalendertag-DATE(YEAR(Kalendertag),1,0)),CONCATENATE(\"Tag \",Kalendertag-DATE(YEAR(Kalendertag),1,0)))","v":"Woche 18/Tag 119"},{"$f":"IF(WEEKDAY(Kalendertag)=WochenanfangWert,CONCATENATE(\"Woche \",WEEKNUM(Kalendertag),\"/Tag \",Kalendertag-DATE(YEAR(Kalendertag),1,0)),CONCATENATE(\"Tag \",Kalendertag-DATE(YEAR(Kalendertag),1,0)))","v":"Tag 120"},{"$f":"IF(WEEKDAY(Kalendertag)=WochenanfangWert,CONCATENATE(\"Woche \",WEEKNUM(Kalendertag),\"/Tag \",Kalendertag-DATE(YEAR(Kalendertag),1,0)),CONCATENATE(\"Tag \",Kalendertag-DATE(YEAR(Kalendertag),1,0)))","v":"Tag 121"},{"$f":"IF(WEEKDAY(Kalendertag)=WochenanfangWert,CONCATENATE(\"Woche \",WEEKNUM(Kalendertag),\"/Tag \",Kalendertag-DATE(YEAR(Kalendertag),1,0)),CONCATENATE(\"Tag \",Kalendertag-DATE(YEAR(Kalendertag),1,0)))","v":"Tag 122"},{"$f":"IF(WEEKDAY(Kalendertag)=WochenanfangWert,CONCATENATE(\"Woche \",WEEKNUM(Kalendertag),\"/Tag \",Kalendertag-DATE(YEAR(Kalendertag),1,0)),CONCATENATE(\"Tag \",Kalendertag-DATE(YEAR(Kalendertag),1,0)))","v":"Tag 123"},{"$f":"IF(WEEKDAY(Kalendertag)=WochenanfangWert,CONCATENATE(\"Woche \",WEEKNUM(Kalendertag),\"/Tag \",Kalendertag-DATE(YEAR(Kalendertag),1,0)),CONCATENATE(\"Tag \",Kalendertag-DATE(YEAR(Kalendertag),1,0)))","v":"Tag 124"},{"$f":"IF(WEEKDAY(Kalendertag)=WochenanfangWert,CONCATENATE(\"Woche \",WEEKNUM(Kalendertag),\"/Tag \",Kalendertag-DATE(YEAR(Kalendertag),1,0)),CONCATENATE(\"Tag \",Kalendertag-DATE(YEAR(Kalendertag),1,0)))","v":"Tag 125"}]
[{"$nulls":4},"NOTIZEN"]
[]
[null,null,{"$f":"TageUndWochen+DATE(Kalenderjahr,4,1)-WEEKDAY(DATE(Kalenderjahr,4,1),(Wochenanfang=\"MO\")+1)+36","v":"2018-05-06"},"2018-05-07"]
[null,null,{"$f":"IF(WEEKDAY(Kalendertag)=WochenanfangWert,CONCATENATE(\"Woche \",WEEKNUM(Kalendertag),\"/Tag \",Kalendertag-DATE(YEAR(Kalendertag),1,0)),CONCATENATE(\"Tag \",Kalendertag-DATE(YEAR(Kalendertag),1,0)))","v":"Woche 19/Tag 126"},{"$f":"IF(WEEKDAY(Kalendertag)=WochenanfangWert,CONCATENATE(\"Woche \",WEEKNUM(Kalendertag),\"/Tag \",Kalendertag-DATE(YEAR(Kalendertag),1,0)),CONCATENATE(\"Tag \",Kalendertag-DATE(YEAR(Kalendertag),1,0)))","v":"Tag 127"}]

{"sheet":"MAI","index":4,"n_rows":20,"n_cols":9,"rows_kept":20,"merged":[[16,2,17,2],[17,4,19,8]]}
[null,"MAI",{"$f":"UPPER(TEXT(Wochenanfang,\"ddd\"))","v":"SO"},{"$f":"UPPER(TEXT(D3,\"aaa\"))","v":"MO"},"DI","MI","DO","FR","SA"]
[null,{"$f":"Kalenderjahr","v":2018}]
[null,null,{"$f":"TageUndWochen+DATE(Kalenderjahr,5,1)-WEEKDAY(DATE(Kalenderjahr,5,1),(Wochenanfang=\"MO\")+1)+1","v":"2018-04-29"},"2018-04-30","2018-05-01","2018-05-02","2018-05-03","2018-05-04","2018-05-05"]
[null,null,{"$f":"IF(DAY(Kalendertag)=1,CONCATENATE(\"Woche \",WEEKNUM(Kalendertag),\"/Tag \",Kalendertag-DATE(YEAR(Kalendertag),1,0)),CONCATENATE(\"Tag \",Kalendertag-DATE(YEAR(Kalendertag),1,0)))","v":"Tag 119"},{"$f":"IF(DAY(Kalendertag)=1,CONCATENATE(\"Woche \",WEEKNUM(Kalendertag),\"/Tag \",Kalendertag-DATE(YEAR(Kalendertag),1,0)),CONCATENATE(\"Tag \",Kalendertag-DATE(YEAR(Kalendertag),1,0)))","v":"Tag 120"},{"$f":"IF(DAY(Kalendertag)=1,CONCATENATE(\"Woche \",WEEKNUM(Kalendertag),\"/Tag \",Kalendertag-DATE(YEAR(Kalendertag),1,0)),CONCATENATE(\"Tag \",Kalendertag-DATE(YEAR(Kalendertag),1,0)))","v":"Woche 18/Tag 121"},{"$f":"IF(DAY(Kalendertag)=1,CONCATENATE(\"Woche \",WEEKNUM(Kalendertag),\"/Tag \",Kalendertag-DATE(YEAR(Kalendertag),1,0)),CONCATENATE(\"Tag \",Kalendertag-DATE(YEAR(Kalendertag),1,0)))","v":"Tag 122"},{"$f":"IF(DAY(Kalendertag)=1,CONCATENATE(\"Woche \",WEEKNUM(Kalendertag),\"/Tag \",Kalendertag-DATE(YEAR(Kalendertag),1,0)),CONCATENATE(\"Tag \",Kalendertag-DATE(YEAR(Kalendertag),1,0)))","v":"Tag 123"},{"$f":"IF(DAY(Kalendertag)=1,CONCATENATE(\"Woche \",WEEKNUM(Kalendertag),\"/Tag \",Kalendertag-DATE(YEAR(Kalendertag),1,0)),CONCATENATE(\"Tag \",Kalendertag-DATE(YEAR(Kalendertag),1,0)))","v":"Tag 124"},{"$f":"IF(DAY(Kalendertag)=1,CONCATENATE(\"Woche \",WEEKNUM(Kalendertag),\"/Tag \",Kalendertag-DATE(YEAR(Kalendertag),1,0)),CONCATENATE(\"Tag \",Kalendertag-DATE(YEAR(Kalendertag),1,0)))","v":"Tag 125"}]
[]
[null,null,{"$f":"TageUndWochen+DATE(Kalenderjahr,5,1)-WEEKDAY(DATE(Kalenderjahr,5,1),(Wochenanfang=\"MO\")+1)+8","v":"2018-05-06"},"2018-05-07","2018-05-08","2018-05-09","2018-05-10","2018-05-11","2018-05-12"]
[null,null,{"$f":"IF(WEEKDAY(Kalendertag)=WochenanfangWert,CONCATENATE(\"Woche \",WEEKNUM(Kalendertag),\"/Tag \",Kalendertag-DATE(YEAR(Kalendertag),1,0)),CONCATENATE(\"Tag \",Kalendertag-DATE(YEAR(Kalendertag),1,0)))","v":"Woche 19/Tag 126"},{"$f":"IF(WEEKDAY(Kalendertag)=WochenanfangWert,CONCATENATE(\"Woche \",WEEKNUM(Kalendertag),\"/Tag \",Kalendertag-DATE(YEAR(Kalendertag),1,0)),CONCATENATE(\"Tag \",Kalendertag-DATE(YEAR(Kalendertag),1,0)))","v":"Tag 127"},{"$f":"IF(WEEKDAY(Kalendertag)=WochenanfangWert,CONCATENATE(\"Woche \",WEEKNUM(Kalendertag),\"/Tag \",Kalendertag-DATE(YEAR(Kalendertag),1,0)),CONCATENATE(\"Tag \",Kalendertag-DATE(YEAR(Kalendertag),1,0)))","v":"Tag 128"},{"$f":"IF(WEEKDAY(Kalendertag)=WochenanfangWert,CONCATENATE(\"Woche \",WEEKNUM(Kalendertag),\"/Tag \",Kalendertag-DATE(YEAR(Kalendertag),1,0)),CONCATENATE(\"Tag \",Kalendertag-DATE(YEAR(Kalendertag),1,0)))","v":"Tag 129"},{"$f":"IF(WEEKDAY(Kalendertag)=WochenanfangWert,CONCATENATE(\"Woche \",WEEKNUM(Kalendertag),\"/Tag \",Kalendertag-DATE(YEAR(Kalendertag),1,0)),CONCATENATE(\"Tag \",Kalendertag-DATE(YEAR(Kalendertag),1,0)))","v":"Tag 130"},{"$f":"IF(WEEKDAY(Kalendertag)=WochenanfangWert,CONCATENATE(\"Woche \",WEEKNUM(Kalendertag),\"/Tag \",Kalendertag-DATE(YEAR(Kalendertag),1,0)),CONCATENATE(\"Tag \",Kalendertag-DATE(YEAR(Kalendertag),1,0)))","v":"Tag 131"},{"$f":"IF(WEEKDAY(Kalendertag)=WochenanfangWert,CONCATENATE(\"Woche \",WEEKNUM(Kalendertag),\"/Tag \",Kalendertag-DATE(YEAR(Kalendertag),1,0)),CONCATENATE(\"Tag \",Kalendertag-DATE(YEAR(Kalendertag),1,0)))","v":"Tag 132"}]
[]
[null,null,{"$f":"TageUndWochen+DATE(Kalenderjahr,5,1)-WEEKDAY(DATE(Kalenderjahr,5,1),(Wochenanfang=\"MO\")+1)+15","v":"2018-05-13"},"2018-05-14","2018-05-15","2018-05-16","2018-05-17","2018-05-18","2018-05-19"]
[null,null,{"$f":"IF(WEEKDAY(Kalendertag)=WochenanfangWert,CONCATENATE(\"Woche \",WEEKNUM(Kalendertag),\"/Tag \",Kalendertag-DATE(YEAR(Kalendertag),1,0)),CONCATENATE(\"Tag \",Kalendertag-DATE(YEAR(Kalendertag),1,0)))","v":"Woche 20/Tag 133"},{"$f":"IF(WEEKDAY(Kalendertag)=WochenanfangWert,CONCATENATE(\"Woche \",WEEKNUM(Kalendertag),\"/Tag \",Kalendertag-DATE(YEAR(Kalendertag),1,0)),CONCATENATE(\"Tag \",Kalendertag-DATE(YEAR(Kalendertag),1,0)))","v":"Tag 134"},{"$f":"IF(WEEKDAY(Kalendertag)=WochenanfangWert,CONCATENATE(\"Woche \",WEEKNUM(Kalendertag),\"/Tag \",Kalendertag-DATE(YEAR(Kalendertag),1,0)),CONCATENATE(\"Tag \",Kalendertag-DATE(YEAR(Kalendertag),1,0)))","v":"Tag 135"},{"$f":"IF(WEEKDAY(Kalendertag)=WochenanfangWert,CONCATENATE(\"Woche \",WEEKNUM(Kalendertag),\"/Tag \",Kalendertag-DATE(YEAR(Kalendertag),1,0)),CONCATENATE(\"Tag \",Kalendertag-DATE(YEAR(Kalendertag),1,0)))","v":"Tag 136"},{"$f":"IF(WEEKDAY(Kalendertag)=WochenanfangWert,CONCATENATE(\"Woche \",WEEKNUM(Kalendertag),\"/Tag \",Kalendertag-DATE(YEAR(Kalendertag),1,0)),CONCATENATE(\"Tag \",Kalendertag-DATE(YEAR(Kalendertag),1,0)))","v":"Tag 137"},{"$f":"IF(WEEKDAY(Kalendertag)=WochenanfangWert,CONCATENATE(\"Woche \",WEEKNUM(Kalendertag),\"/Tag \",Kalendertag-DATE(YEAR(Kalendertag),1,0)),CONCATENATE(\"Tag \",Kalendertag-DATE(YEAR(Kalendertag),1,0)))","v":"Tag 138"},{"$f":"IF(WEEKDAY(Kalendertag)=WochenanfangWert,CONCATENATE(\"Woche \",WEEKNUM(Kalendertag),\"/Tag \",Kalendertag-DATE(YEAR(Kalendertag),1,0)),CONCATENATE(\"Tag \",Kalendertag-DATE(YEAR(Kalendertag),1,0)))","v":"Tag 139"}]
[]
[null,null,{"$f":"TageUndWochen+DATE(Kalenderjahr,5,1)-WEEKDAY(DATE(Kalenderjahr,5,1),(Wochenanfang=\"MO\")+1)+22","v":"2018-05-20"},"2018-05-21","2018-05-22","2018-05-23","2018-05-24","2018-05-25","2018-05-26"]
[null,null,{"$f":"IF(WEEKDAY(Kalendertag)=WochenanfangWert,CONCATENATE(\"Woche \",WEEKNUM(Kalendertag),\"/Tag \",Kalendertag-DATE(YEAR(Kalendertag),1,0)),CONCATENATE(\"Tag \",Kalendertag-DATE(YEAR(Kalendertag),1,0)))","v":"Woche 21/Tag 140"},{"$f":"IF(WEEKDAY(Kalendertag)=WochenanfangWert,CONCATENATE(\"Woche \",WEEKNUM(Kalendertag),\"/Tag \",Kalendertag-DATE(YEAR(Kalendertag),1,0)),CONCATENATE(\"Tag \",Kalendertag-DATE(YEAR(Kalendertag),1,0)))","v":"Tag 141"},{"$f":"IF(WEEKDAY(Kalendertag)=WochenanfangWert,CONCATENATE(\"Woche \",WEEKNUM(Kalendertag),\"/Tag \",Kalendertag-DATE(YEAR(Kalendertag),1,0)),CONCATENATE(\"Tag \",Kalendertag-DATE(YEAR(Kalendertag),1,0)))","v":"Tag 142"},{"$f":"IF(WEEKDAY(Kalendertag)=WochenanfangWert,CONCATENATE(\"Woche \",WEEKNUM(Kalendertag),\"/Tag \",Kalendertag-DATE(YEAR(Kalendertag),1,0)),CONCATENATE(\"Tag \",Kalendertag-DATE(YEAR(Kalendertag),1,0)))","v":"Tag 143"},{"$f":"IF(WEEKDAY(Kalendertag)=WochenanfangWert,CONCATENATE(\"Woche \",WEEKNUM(Kalendertag),\"/Tag \",Kalendertag-DATE(YEAR(Kalendertag),1,0)),CONCATENATE(\"Tag \",Kalendertag-DATE(YEAR(Kalendertag),1,0)))","v":"Tag 144"},{"$f":"IF(WEEKDAY(Kalendertag)=WochenanfangWert,CONCATENATE(\"Woche \",WEEKNUM(Kalendertag),\"/Tag \",Kalendertag-DATE(YEAR(Kalendertag),1,0)),CONCATENATE(\"Tag \",Kalendertag-DATE(YEAR(Kalendertag),1,0)))","v":"Tag 145"},{"$f":"IF(WEEKDAY(Kalendertag)=WochenanfangWert,CONCATENATE(\"Woche \",WEEKNUM(Kalendertag),\"/Tag \",Kalendertag-DATE(YEAR(Kalendertag),1,0)),CONCATENATE(\"Tag \",Kalendertag-DATE(YEAR(Kalendertag),1,0)))","v":"Tag 146"}]
[]
[null,null,{"$f":"TageUndWochen+DATE(Kalenderjahr,5,1)-WEEKDAY(DATE(Kalenderjahr,5,1),(Wochenanfang=\"MO\")+1)+29","v":"2018-05-27"},"2018-05-28","2018-05-29","2018-05-30","2018-05-31","2018-06-01","2018-06-02"]
[null,null,{"$f":"IF(WEEKDAY(Kalendertag)=WochenanfangWert,CONCATENATE(\"Woche \",WEEKNUM(Kalendertag),\"/Tag \",Kalendertag-DATE(YEAR(Kalendertag),1,0)),CONCATENATE(\"Tag \",Kalendertag-DATE(YEAR(Kalendertag),1,0)))","v":"Woche 22/Tag 147"},{"$f":"IF(WEEKDAY(Kalendertag)=WochenanfangWert,CONCATENATE(\"Woche \",WEEKNUM(Kalendertag),\"/Tag \",Kalendertag-DATE(YEAR(Kalendertag),1,0)),CONCATENATE(\"Tag \",Kalendertag-DATE(YEAR(Kalendertag),1,0)))","v":"Tag 148"},{"$f":"IF(WEEKDAY(Kalendertag)=WochenanfangWert,CONCATENATE(\"Woche \",WEEKNUM(Kalendertag),\"/Tag \",Kalendertag-DATE(YEAR(Kalendertag),1,0)),CONCATENATE(\"Tag \",Kalendertag-DATE(YEAR(Kalendertag),1,0)))","v":"Tag 149"},{"$f":"IF(WEEKDAY(Kalendertag)=WochenanfangWert,CONCATENATE(\"Woche \",WEEKNUM(Kalendertag),\"/Tag \",Kalendertag-DATE(YEAR(Kalendertag),1,0)),CONCATENATE(\"Tag \",Kalendertag-DATE(YEAR(Kalendertag),1,0)))","v":"Tag 150"},{"$f":"IF(WEEKDAY(Kalendertag)=WochenanfangWert,CONCATENATE(\"Woche \",WEEKNUM(Kalendertag),\"/Tag \",Kalendertag-DATE(YEAR(Kalendertag),1,0)),CONCATENATE(\"Tag \",Kalendertag-DATE(YEAR(Kalendertag),1,0)))","v":"Tag 151"},{"$f":"IF(WEEKDAY(Kalendertag)=WochenanfangWert,CONCATENATE(\"Woche \",WEEKNUM(Kalendertag),\"/Tag \",Kalendertag-DATE(YEAR(Kalendertag),1,0)),CONCATENATE(\"Tag \",Kalendertag-DATE(YEAR(Kalendertag),1,0)))","v":"Tag 152"},{"$f":"IF(WEEKDAY(Kalendertag)=WochenanfangWert,CONCATENATE(\"Woche \",WEEKNUM(Kalendertag),\"/Tag \",Kalendertag-DATE(YEAR(Kalendertag),1,0)),CONCATENATE(\"Tag \",Kalendertag-DATE(YEAR(Kalendertag),1,0)))","v":"Tag 153"}]
[{"$nulls":4},"NOTIZEN"]
[]
[null,null,{"$f":"TageUndWochen+DATE(Kalenderjahr,5,1)-WEEKDAY(DATE(Kalenderjahr,5,1),(Wochenanfang=\"MO\")+1)+36","v":"2018-06-03"},"2018-06-04"]
[null,null,{"$f":"IF(WEEKDAY(Kalendertag)=WochenanfangWert,CONCATENATE(\"Woche \",WEEKNUM(Kalendertag),\"/Tag \",Kalendertag-DATE(YEAR(Kalendertag),1,0)),CONCATENATE(\"Tag \",Kalendertag-DATE(YEAR(Kalendertag),1,0)))","v":"Woche 23/Tag 154"},{"$f":"IF(WEEKDAY(Kalendertag)=WochenanfangWert,CONCATENATE(\"Woche \",WEEKNUM(Kalendertag),\"/Tag \",Kalendertag-DATE(YEAR(Kalendertag),1,0)),CONCATENATE(\"Tag \",Kalendertag-DATE(YEAR(Kalendertag),1,0)))","v":"Tag 155"}]

{"sheet":"JUN","index":5,"n_rows":20,"n_cols":9,"rows_kept":20,"merged":[[16,2,17,2],[17,4,19,8]]}
[null,"JUN",{"$f":"UPPER(TEXT(Wochenanfang,\"ddd\"))","v":"SO"},{"$f":"UPPER(TEXT(D3,\"aaa\"))","v":"MO"},"DI","MI","DO","FR","SA"]
[null,{"$f":"Kalenderjahr","v":2018}]
[null,null,{"$f":"TageUndWochen+DATE(Kalenderjahr,6,1)-WEEKDAY(DATE(Kalenderjahr,6,1),(Wochenanfang=\"MO\")+1)+1","v":"2018-05-27"},"2018-05-28","2018-05-29","2018-05-30","2018-05-31","2018-06-01","2018-06-02"]
[null,null,{"$f":"IF(DAY(Kalendertag)=1,CONCATENATE(\"Woche \",WEEKNUM(Kalendertag),\"/Tag \",Kalendertag-DATE(YEAR(Kalendertag),1,0)),CONCATENATE(\"Tag \",Kalendertag-DATE(YEAR(Kalendertag),1,0)))","v":"Tag 147"},{"$f":"IF(DAY(Kalendertag)=1,CONCATENATE(\"Woche \",WEEKNUM(Kalendertag),\"/Tag \",Kalendertag-DATE(YEAR(Kalendertag),1,0)),CONCATENATE(\"Tag \",Kalendertag-DATE(YEAR(Kalendertag),1,0)))","v":"Tag 148"},{"$f":"IF(DAY(Kalendertag)=1,CONCATENATE(\"Woche \",WEEKNUM(Kalendertag),\"/Tag \",Kalendertag-DATE(YEAR(Kalendertag),1,0)),CONCATENATE(\"Tag \",Kalendertag-DATE(YEAR(Kalendertag),1,0)))","v":"Tag 149"},{"$f":"IF(DAY(Kalendertag)=1,CONCATENATE(\"Woche \",WEEKNUM(Kalendertag),\"/Tag \",Kalendertag-DATE(YEAR(Kalendertag),1,0)),CONCATENATE(\"Tag \",Kalendertag-DATE(YEAR(Kalendertag),1,0)))","v":"Tag 150"},{"$f":"IF(DAY(Kalendertag)=1,CONCATENATE(\"Woche \",WEEKNUM(Kalendertag),\"/Tag \",Kalendertag-DATE(YEAR(Kalendertag),1,0)),CONCATENATE(\"Tag \",Kalendertag-DATE(YEAR(Kalendertag),1,0)))","v":"Tag 151"},{"$f":"IF(DAY(Kalendertag)=1,CONCATENATE(\"Woche \",WEEKNUM(Kalendertag),\"/Tag \",Kalendertag-DATE(YEAR(Kalendertag),1,0)),CONCATENATE(\"Tag \",Kalendertag-DATE(YEAR(Kalendertag),1,0)))","v":"Woche 22/Tag 152"},{"$f":"IF(DAY(Kalendertag)=1,CONCATENATE(\"Woche \",WEEKNUM(Kalendertag),\"/Tag \",Kalendertag-DATE(YEAR(Kalendertag),1,0)),CONCATENATE(\"Tag \",Kalendertag-DATE(YEAR(Kalendertag),1,0)))","v":"Tag 153"}]
[]
[null,null,{"$f":"TageUndWochen+DATE(Kalenderjahr,6,1)-WEEKDAY(DATE(Kalenderjahr,6,1),(Wochenanfang=\"MO\")+1)+8","v":"2018-06-03"},"2018-06-04","2018-06-05","2018-06-06","2018-06-07","2018-06-08","2018-06-09"]
[null,null,{"$f":"IF(WEEKDAY(Kalendertag)=WochenanfangWert,CONCATENATE(\"Woche \",WEEKNUM(Kalendertag),\"/Tag \",Kalendertag-DATE(YEAR(Kalendertag),1,0)),CONCATENATE(\"Tag \",Kalendertag-DATE(YEAR(Kalendertag),1,0)))","v":"Woche 23/Tag 154"},{"$f":"IF(WEEKDAY(Kalendertag)=WochenanfangWert,CONCATENATE(\"Woche \",WEEKNUM(Kalendertag),\"/Tag \",Kalendertag-DATE(YEAR(Kalendertag),1,0)),CONCATENATE(\"Tag \",Kalendertag-DATE(YEAR(Kalendertag),1,0)))","v":"Tag 155"},{"$f":"IF(WEEKDAY(Kalendertag)=WochenanfangWert,CONCATENATE(\"Woche \",WEEKNUM(Kalendertag),\"/Tag \",Kalendertag-DATE(YEAR(Kalendertag),1,0)),CONCATENATE(\"Tag \",Kalendertag-DATE(YEAR(Kalendertag),1,0)))","v":"Tag 156"},{"$f":"IF(WEEKDAY(Kalendertag)=WochenanfangWert,CONCATENATE(\"Woche \",WEEKNUM(Kalendertag),\"/Tag \",Kalendertag-DATE(YEAR(Kalendertag),1,0)),CONCATENATE(\"Tag \",Kalendertag-DATE(YEAR(Kalendertag),1,0)))","v":"Tag 157"},{"$f":"IF(WEEKDAY(Kalendertag)=WochenanfangWert,CONCATENATE(\"Woche \",WEEKNUM(Kalendertag),\"/Tag \",Kalendertag-DATE(YEAR(Kalendertag),1,0)),CONCATENATE(\"Tag \",Kalendertag-DATE(YEAR(Kalendertag),1,0)))","v":"Tag 158"},{"$f":"IF(WEEKDAY(Kalendertag)=WochenanfangWert,CONCATENATE(\"Woche \",WEEKNUM(Kalendertag),\"/Tag \",Kalendertag-DATE(YEAR(Kalendertag),1,0)),CONCATENATE(\"Tag \",Kalendertag-DATE(YEAR(Kalendertag),1,0)))","v":"Tag 159"},{"$f":"IF(WEEKDAY(Kalendertag)=WochenanfangWert,CONCATENATE(\"Woche \",WEEKNUM(Kalendertag),\"/Tag \",Kalendertag-DATE(YEAR(Kalendertag),1,0)),CONCATENATE(\"Tag \",Kalendertag-DATE(YEAR(Kalendertag),1,0)))","v":"Tag 160"}]
[]
[null,null,{"$f":"TageUndWochen+DATE(Kalenderjahr,6,1)-WEEKDAY(DATE(Kalenderjahr,6,1),(Wochenanfang=\"MO\")+1)+15","v":"2018-06-10"},"2018-06-11","2018-06-12","2018-06-13","2018-06-14","2018-06-15","2018-06-16"]
[null,null,{"$f":"IF(WEEKDAY(Kalendertag)=WochenanfangWert,CONCATENATE(\"Woche \",WEEKNUM(Kalendertag),\"/Tag \",Kalendertag-DATE(YEAR(Kalendertag),1,0)),CONCATENATE(\"Tag \",Kalendertag-DATE(YEAR(Kalendertag),1,0)))","v":"Woche 24/Tag 161"},{"$f":"IF(WEEKDAY(Kalendertag)=WochenanfangWert,CONCATENATE(\"Woche \",WEEKNUM(Kalendertag),\"/Tag \",Kalendertag-DATE(YEAR(Kalendertag),1,0)),CONCATENATE(\"Tag \",Kalendertag-DATE(YEAR(Kalendertag),1,0)))","v":"Tag 162"},{"$f":"IF(WEEKDAY(Kalendertag)=WochenanfangWert,CONCATENATE(\"Woche \",WEEKNUM(Kalendertag),\"/Tag \",Kalendertag-DATE(YEAR(Kalendertag),1,0)),CONCATENATE(\"Tag \",Kalendertag-DATE(YEAR(Kalendertag),1,0)))","v":"Tag 163"},{"$f":"IF(WEEKDAY(Kalendertag)=WochenanfangWert,CONCATENATE(\"Woche \",WEEKNUM(Kalendertag),\"/Tag \",Kalendertag-DATE(YEAR(Kalendertag),1,0)),CONCATENATE(\"Tag \",Kalendertag-DATE(YEAR(Kalendertag),1,0)))","v":"Tag 164"},{"$f":"IF(WEEKDAY(Kalendertag)=WochenanfangWert,CONCATENATE(\"Woche \",WEEKNUM(Kalendertag),\"/Tag \",Kalendertag-DATE(YEAR(Kalendertag),1,0)),CONCATENATE(\"Tag \",Kalendertag-DATE(YEAR(Kalendertag),1,0)))","v":"Tag 165"},{"$f":"IF(WEEKDAY(Kalendertag)=WochenanfangWert,CONCATENATE(\"Woche \",WEEKNUM(Kalendertag),\"/Tag \",Kalendertag-DATE(YEAR(Kalendertag),1,0)),CONCATENATE(\"Tag \",Kalendertag-DATE(YEAR(Kalendertag),1,0)))","v":"Tag 166"},{"$f":"IF(WEEKDAY(Kalendertag)=WochenanfangWert,CONCATENATE(\"Woche \",WEEKNUM(Kalendertag),\"/Tag \",Kalendertag-DATE(YEAR(Kalendertag),1,0)),CONCATENATE(\"Tag \",Kalendertag-DATE(YEAR(Kalendertag),1,0)))","v":"Tag 167"}]
[]
[null,null,{"$f":"TageUndWochen+DATE(Kalenderjahr,6,1)-WEEKDAY(DATE(Kalenderjahr,6,1),(Wochenanfang=\"MO\")+1)+22","v":"2018-06-17"},"2018-06-18","2018-06-19","2018-06-20","2018-06-21","2018-06-22","2018-06-23"]
[null,null,{"$f":"IF(WEEKDAY(Kalendertag)=WochenanfangWert,CONCATENATE(\"Woche \",WEEKNUM(Kalendertag),\"/Tag \",Kalendertag-DATE(YEAR(Kalendertag),1,0)),CONCATENATE(\"Tag \",Kalendertag-DATE(YEAR(Kalendertag),1,0)))","v":"Woche 25/Tag 168"},{"$f":"IF(WEEKDAY(Kalendertag)=WochenanfangWert,CONCATENATE(\"Woche \",WEEKNUM(Kalendertag),\"/Tag \",Kalendertag-DATE(YEAR(Kalendertag),1,0)),CONCATENATE(\"Tag \",Kalendertag-DATE(YEAR(Kalendertag),1,0)))","v":"Tag 169"},{"$f":"IF(WEEKDAY(Kalendertag)=WochenanfangWert,CONCATENATE(\"Woche \",WEEKNUM(Kalendertag),\"/Tag \",Kalendertag-DATE(YEAR(Kalendertag),1,0)),CONCATENATE(\"Tag \",Kalendertag-DATE(YEAR(Kalendertag),1,0)))","v":"Tag 170"},{"$f":"IF(WEEKDAY(Kalendertag)=WochenanfangWert,CONCATENATE(\"Woche \",WEEKNUM(Kalendertag),\"/Tag \",Kalendertag-DATE(YEAR(Kalendertag),1,0)),CONCATENATE(\"Tag \",Kalendertag-DATE(YEAR(Kalendertag),1,0)))","v":"Tag 171"},{"$f":"IF(WEEKDAY(Kalendertag)=WochenanfangWert,CONCATENATE(\"Woche \",WEEKNUM(Kalendertag),\"/Tag \",Kalendertag-DATE(YEAR(Kalendertag),1,0)),CONCATENATE(\"Tag \",Kalendertag-DATE(YEAR(Kalendertag),1,0)))","v":"Tag 172"},{"$f":"IF(WEEKDAY(Kalendertag)=WochenanfangWert,CONCATENATE(\"Woche \",WEEKNUM(Kalendertag),\"/Tag \",Kalendertag-DATE(YEAR(Kalendertag),1,0)),CONCATENATE(\"Tag \",Kalendertag-DATE(YEAR(Kalendertag),1,0)))","v":"Tag 173"},{"$f":"IF(WEEKDAY(Kalendertag)=WochenanfangWert,CONCATENATE(\"Woche \",WEEKNUM(Kalendertag),\"/Tag \",Kalendertag-DATE(YEAR(Kalendertag),1,0)),CONCATENATE(\"Tag \",Kalendertag-DATE(YEAR(Kalendertag),1,0)))","v":"Tag 174"}]
[]
[null,null,{"$f":"TageUndWochen+DATE(Kalenderjahr,6,1)-WEEKDAY(DATE(Kalenderjahr,6,1),(Wochenanfang=\"MO\")+1)+29","v":"2018-06-24"},"2018-06-25","2018-06-26","2018-06-27","2018-06-28","2018-06-29","2018-06-30"]
[null,null,{"$f":"IF(WEEKDAY(Kalendertag)=WochenanfangWert,CONCATENATE(\"Woche \",WEEKNUM(Kalendertag),\"/Tag \",Kalendertag-DATE(YEAR(Kalendertag),1,0)),CONCATENATE(\"Tag \",Kalendertag-DATE(YEAR(Kalendertag),1,0)))","v":"Woche 26/Tag 175"},{"$f":"IF(WEEKDAY(Kalendertag)=WochenanfangWert,CONCATENATE(\"Woche \",WEEKNUM(Kalendertag),\"/Tag \",Kalendertag-DATE(YEAR(Kalendertag),1,0)),CONCATENATE(\"Tag \",Kalendertag-DATE(YEAR(Kalendertag),1,0)))","v":"Tag 176"},{"$f":"IF(WEEKDAY(Kalendertag)=WochenanfangWert,CONCATENATE(\"Woche \",WEEKNUM(Kalendertag),\"/Tag \",Kalendertag-DATE(YEAR(Kalendertag),1,0)),CONCATENATE(\"Tag \",Kalendertag-DATE(YEAR(Kalendertag),1,0)))","v":"Tag 177"},{"$f":"IF(WEEKDAY(Kalendertag)=WochenanfangWert,CONCATENATE(\"Woche \",WEEKNUM(Kalendertag),\"/Tag \",Kalendertag-DATE(YEAR(Kalendertag),1,0)),CONCATENATE(\"Tag \",Kalendertag-DATE(YEAR(Kalendertag),1,0)))","v":"Tag 178"},{"$f":"IF(WEEKDAY(Kalendertag)=WochenanfangWert,CONCATENATE(\"Woche \",WEEKNUM(Kalendertag),\"/Tag \",Kalendertag-DATE(YEAR(Kalendertag),1,0)),CONCATENATE(\"Tag \",Kalendertag-DATE(YEAR(Kalendertag),1,0)))","v":"Tag 179"},{"$f":"IF(WEEKDAY(Kalendertag)=WochenanfangWert,CONCATENATE(\"Woche \",WEEKNUM(Kalendertag),\"/Tag \",Kalendertag-DATE(YEAR(Kalendertag),1,0)),CONCATENATE(\"Tag \",Kalendertag-DATE(YEAR(Kalendertag),1,0)))","v":"Tag 180"},{"$f":"IF(WEEKDAY(Kalendertag)=WochenanfangWert,CONCATENATE(\"Woche \",WEEKNUM(Kalendertag),\"/Tag \",Kalendertag-DATE(YEAR(Kalendertag),1,0)),CONCATENATE(\"Tag \",Kalendertag-DATE(YEAR(Kalendertag),1,0)))","v":"Tag 181"}]
[{"$nulls":4},"NOTIZEN"]
[]
[null,null,{"$f":"TageUndWochen+DATE(Kalenderjahr,6,1)-WEEKDAY(DATE(Kalenderjahr,6,1),(Wochenanfang=\"MO\")+1)+36","v":"2018-07-01"},"2018-07-02"]
[null,null,{"$f":"IF(WEEKDAY(Kalendertag)=WochenanfangWert,CONCATENATE(\"Woche \",WEEKNUM(Kalendertag),\"/Tag \",Kalendertag-DATE(YEAR(Kalendertag),1,0)),CONCATENATE(\"Tag \",Kalendertag-DATE(YEAR(Kalendertag),1,0)))","v":"Woche 27/Tag 182"},{"$f":"IF(WEEKDAY(Kalendertag)=WochenanfangWert,CONCATENATE(\"Woche \",WEEKNUM(Kalendertag),\"/Tag \",Kalendertag-DATE(YEAR(Kalendertag),1,0)),CONCATENATE(\"Tag \",Kalendertag-DATE(YEAR(Kalendertag),1,0)))","v":"Tag 183"}]

{"sheet":"JUL","index":6,"n_rows":20,"n_cols":9,"rows_kept":20,"merged":[[16,2,17,2],[17,4,19,8]]}
[null,"JUL",{"$f":"UPPER(TEXT(Wochenanfang,\"ddd\"))","v":"SO"},{"$f":"UPPER(TEXT(D3,\"aaa\"))","v":"MO"},"DI","MI","DO","FR","SA"]
[null,{"$f":"Kalenderjahr","v":2018}]
[null,null,{"$f":"TageUndWochen+DATE(Kalenderjahr,7,1)-WEEKDAY(DATE(Kalenderjahr,7,1),(Wochenanfang=\"MO\")+1)+1","v":"2018-07-01"},"2018-07-02","2018-07-03","2018-07-04","2018-07-05","2018-07-06","2018-07-07"]
[null,null,{"$f":"IF(DAY(Kalendertag)=1,CONCATENATE(\"Woche \",WEEKNUM(Kalendertag),\"/Tag \",Kalendertag-DATE(YEAR(Kalendertag),1,0)),CONCATENATE(\"Tag \",Kalendertag-DATE(YEAR(Kalendertag),1,0)))","v":"Woche 27/Tag 182"},{"$f":"IF(DAY(Kalendertag)=1,CONCATENATE(\"Woche \",WEEKNUM(Kalendertag),\"/Tag \",Kalendertag-DATE(YEAR(Kalendertag),1,0)),CONCATENATE(\"Tag \",Kalendertag-DATE(YEAR(Kalendertag),1,0)))","v":"Tag 183"},{"$f":"IF(DAY(Kalendertag)=1,CONCATENATE(\"Woche \",WEEKNUM(Kalendertag),\"/Tag \",Kalendertag-DATE(YEAR(Kalendertag),1,0)),CONCATENATE(\"Tag \",Kalendertag-DATE(YEAR(Kalendertag),1,0)))","v":"Tag 184"},{"$f":"IF(DAY(Kalendertag)=1,CONCATENATE(\"Woche \",WEEKNUM(Kalendertag),\"/Tag \",Kalendertag-DATE(YEAR(Kalendertag),1,0)),CONCATENATE(\"Tag \",Kalendertag-DATE(YEAR(Kalendertag),1,0)))","v":"Tag 185"},{"$f":"IF(DAY(Kalendertag)=1,CONCATENATE(\"Woche \",WEEKNUM(Kalendertag),\"/Tag \",Kalendertag-DATE(YEAR(Kalendertag),1,0)),CONCATENATE(\"Tag \",Kalendertag-DATE(YEAR(Kalendertag),1,0)))","v":"Tag 186"},{"$f":"IF(DAY(Kalendertag)=1,CONCATENATE(\"Woche \",WEEKNUM(Kalendertag),\"/Tag \",Kalendertag-DATE(YEAR(Kalendertag),1,0)),CONCATENATE(\"Tag \",Kalendertag-DATE(YEAR(Kalendertag),1,0)))","v":"Tag 187"},{"$f":"IF(DAY(Kalendertag)=1,CONCATENATE(\"Woche \",WEEKNUM(Kalendertag),\"/Tag \",Kalendertag-DATE(YEAR(Kalendertag),1,0)),CONCATENATE(\"Tag \",Kalendertag-DATE(YEAR(Kalendertag),1,0)))","v":"Tag 188"}]
[]
[null,null,{"$f":"TageUndWochen+DATE(Kalenderjahr,7,1)-WEEKDAY(DATE(Kalenderjahr,7,1),(Wochenanfang=\"MO\")+1)+8","v":"2018-07-08"},"2018-07-09","2018-07-10","2018-07-11","2018-07-12","2018-07-13","2018-07-14"]
[null,null,{"$f":"IF(WEEKDAY(Kalendertag)=WochenanfangWert,CONCATENATE(\"Woche \",WEEKNUM(Kalendertag),\"/Tag \",Kalendertag-DATE(YEAR(Kalendertag),1,0)),CONCATENATE(\"Tag \",Kalendertag-DATE(YEAR(Kalendertag),1,0)))","v":"Woche 28/Tag 189"},{"$f":"IF(WEEKDAY(Kalendertag)=WochenanfangWert,CONCATENATE(\"Woche \",WEEKNUM(Kalendertag),\"/Tag \",Kalendertag-DATE(YEAR(Kalendertag),1,0)),CONCATENATE(\"Tag \",Kalendertag-DATE(YEAR(Kalendertag),1,0)))","v":"Tag 190"},{"$f":"IF(WEEKDAY(Kalendertag)=WochenanfangWert,CONCATENATE(\"Woche \",WEEKNUM(Kalendertag),\"/Tag \",Kalendertag-DATE(YEAR(Kalendertag),1,0)),CONCATENATE(\"Tag \",Kalendertag-DATE(YEAR(Kalendertag),1,0)))","v":"Tag 191"},{"$f":"IF(WEEKDAY(Kalendertag)=WochenanfangWert,CONCATENATE(\"Woche \",WEEKNUM(Kalendertag),\"/Tag \",Kalendertag-DATE(YEAR(Kalendertag),1,0)),CONCATENATE(\"Tag \",Kalendertag-DATE(YEAR(Kalendertag),1,0)))","v":"Tag 192"},{"$f":"IF(WEEKDAY(Kalendertag)=WochenanfangWert,CONCATENATE(\"Woche \",WEEKNUM(Kalendertag),\"/Tag \",Kalendertag-DATE(YEAR(Kalendertag),1,0)),CONCATENATE(\"Tag \",Kalendertag-DATE(YEAR(Kalendertag),1,0)))","v":"Tag 193"},{"$f":"IF(WEEKDAY(Kalendertag)=WochenanfangWert,CONCATENATE(\"Woche \",WEEKNUM(Kalendertag),\"/Tag \",Kalendertag-DATE(YEAR(Kalendertag),1,0)),CONCATENATE(\"Tag \",Kalendertag-DATE(YEAR(Kalendertag),1,0)))","v":"Tag 194"},{"$f":"IF(WEEKDAY(Kalendertag)=WochenanfangWert,CONCATENATE(\"Woche \",WEEKNUM(Kalendertag),\"/Tag \",Kalendertag-DATE(YEAR(Kalendertag),1,0)),CONCATENATE(\"Tag \",Kalendertag-DATE(YEAR(Kalendertag),1,0)))","v":"Tag 195"}]
[]
[null,null,{"$f":"TageUndWochen+DATE(Kalenderjahr,7,1)-WEEKDAY(DATE(Kalenderjahr,7,1),(Wochenanfang=\"MO\")+1)+15","v":"2018-07-15"},"2018-07-16","2018-07-17","2018-07-18","2018-07-19","2018-07-20","2018-07-21"]
[null,null,{"$f":"IF(WEEKDAY(Kalendertag)=WochenanfangWert,CONCATENATE(\"Woche \",WEEKNUM(Kalendertag),\"/Tag \",Kalendertag-DATE(YEAR(Kalendertag),1,0)),CONCATENATE(\"Tag \",Kalendertag-DATE(YEAR(Kalendertag),1,0)))","v":"Woche 29/Tag 196"},{"$f":"IF(WEEKDAY(Kalendertag)=WochenanfangWert,CONCATENATE(\"Woche \",WEEKNUM(Kalendertag),\"/Tag \",Kalendertag-DATE(YEAR(Kalendertag),1,0)),CONCATENATE(\"Tag \",Kalendertag-DATE(YEAR(Kalendertag),1,0)))","v":"Tag 197"},{"$f":"IF(WEEKDAY(Kalendertag)=WochenanfangWert,CONCATENATE(\"Woche \",WEEKNUM(Kalendertag),\"/Tag \",Kalendertag-DATE(YEAR(Kalendertag),1,0)),CONCATENATE(\"Tag \",Kalendertag-DATE(YEAR(Kalendertag),1,0)))","v":"Tag 198"},{"$f":"IF(WEEKDAY(Kalendertag)=WochenanfangWert,CONCATENATE(\"Woche \",WEEKNUM(Kalendertag),\"/Tag \",Kalendertag-DATE(YEAR(Kalendertag),1,0)),CONCATENATE(\"Tag \",Kalendertag-DATE(YEAR(Kalendertag),1,0)))","v":"Tag 199"},{"$f":"IF(WEEKDAY(Kalendertag)=WochenanfangWert,CONCATENATE(\"Woche \",WEEKNUM(Kalendertag),\"/Tag \",Kalendertag-DATE(YEAR(Kalendertag),1,0)),CONCATENATE(\"Tag \",Kalendertag-DATE(YEAR(Kalendertag),1,0)))","v":"Tag 200"},{"$f":"IF(WEEKDAY(Kalendertag)=WochenanfangWert,CONCATENATE(\"Woche \",WEEKNUM(Kalendertag),\"/Tag \",Kalendertag-DATE(YEAR(Kalendertag),1,0)),CONCATENATE(\"Tag \",Kalendertag-DATE(YEAR(Kalendertag),1,0)))","v":"Tag 201"},{"$f":"IF(WEEKDAY(Kalendertag)=WochenanfangWert,CONCATENATE(\"Woche \",WEEKNUM(Kalendertag),\"/Tag \",Kalendertag-DATE(YEAR(Kalendertag),1,0)),CONCATENATE(\"Tag \",Kalendertag-DATE(YEAR(Kalendertag),1,0)))","v":"Tag 202"}]
[]
[null,null,{"$f":"TageUndWochen+DATE(Kalenderjahr,7,1)-WEEKDAY(DATE(Kalenderjahr,7,1),(Wochenanfang=\"MO\")+1)+22","v":"2018-07-22"},"2018-07-23","2018-07-24","2018-07-25","2018-07-26","2018-07-27","2018-07-28"]
[null,null,{"$f":"IF(WEEKDAY(Kalendertag)=WochenanfangWert,CONCATENATE(\"Woche \",WEEKNUM(Kalendertag),\"/Tag \",Kalendertag-DATE(YEAR(Kalendertag),1,0)),CONCATENATE(\"Tag \",Kalendertag-DATE(YEAR(Kalendertag),1,0)))","v":"Woche 30/Tag 203"},{"$f":"IF(WEEKDAY(Kalendertag)=WochenanfangWert,CONCATENATE(\"Woche \",WEEKNUM(Kalendertag),\"/Tag \",Kalendertag-DATE(YEAR(Kalendertag),1,0)),CONCATENATE(\"Tag \",Kalendertag-DATE(YEAR(Kalendertag),1,0)))","v":"Tag 204"},{"$f":"IF(WEEKDAY(Kalendertag)=WochenanfangWert,CONCATENATE(\"Woche \",WEEKNUM(Kalendertag),\"/Tag \",Kalendertag-DATE(YEAR(Kalendertag),1,0)),CONCATENATE(\"Tag \",Kalendertag-DATE(YEAR(Kalendertag),1,0)))","v":"Tag 205"},{"$f":"IF(WEEKDAY(Kalendertag)=WochenanfangWert,CONCATENATE(\"Woche \",WEEKNUM(Kalendertag),\"/Tag \",Kalendertag-DATE(YEAR(Kalendertag),1,0)),CONCATENATE(\"Tag \",Kalendertag-DATE(YEAR(Kalendertag),1,0)))","v":"Tag 206"},{"$f":"IF(WEEKDAY(Kalendertag)=WochenanfangWert,CONCATENATE(\"Woche \",WEEKNUM(Kalendertag),\"/Tag \",Kalendertag-DATE(YEAR(Kalendertag),1,0)),CONCATENATE(\"Tag \",Kalendertag-DATE(YEAR(Kalendertag),1,0)))","v":"Tag 207"},{"$f":"IF(WEEKDAY(Kalendertag)=WochenanfangWert,CONCATENATE(\"Woche \",WEEKNUM(Kalendertag),\"/Tag \",Kalendertag-DATE(YEAR(Kalendertag),1,0)),CONCATENATE(\"Tag \",Kalendertag-DATE(YEAR(Kalendertag),1,0)))","v":"Tag 208"},{"$f":"IF(WEEKDAY(Kalendertag)=WochenanfangWert,CONCATENATE(\"Woche \",WEEKNUM(Kalendertag),\"/Tag \",Kalendertag-DATE(YEAR(Kalendertag),1,0)),CONCATENATE(\"Tag \",Kalendertag-DATE(YEAR(Kalendertag),1,0)))","v":"Tag 209"}]
[]
[null,null,{"$f":"TageUndWochen+DATE(Kalenderjahr,7,1)-WEEKDAY(DATE(Kalenderjahr,7,1),(Wochenanfang=\"MO\")+1)+29","v":"2018-07-29"},"2018-07-30","2018-07-31","2018-08-01","2018-08-02","2018-08-03","2018-08-04"]
[null,null,{"$f":"IF(WEEKDAY(Kalendertag)=WochenanfangWert,CONCATENATE(\"Woche \",WEEKNUM(Kalendertag),\"/Tag \",Kalendertag-DATE(YEAR(Kalendertag),1,0)),CONCATENATE(\"Tag \",Kalendertag-DATE(YEAR(Kalendertag),1,0)))","v":"Woche 31/Tag 210"},{"$f":"IF(WEEKDAY(Kalendertag)=WochenanfangWert,CONCATENATE(\"Woche \",WEEKNUM(Kalendertag),\"/Tag \",Kalendertag-DATE(YEAR(Kalendertag),1,0)),CONCATENATE(\"Tag \",Kalendertag-DATE(YEAR(Kalendertag),1,0)))","v":"Tag 211"},{"$f":"IF(WEEKDAY(Kalendertag)=WochenanfangWert,CONCATENATE(\"Woche \",WEEKNUM(Kalendertag),\"/Tag \",Kalendertag-DATE(YEAR(Kalendertag),1,0)),CONCATENATE(\"Tag \",Kalendertag-DATE(YEAR(Kalendertag),1,0)))","v":"Tag 212"},{"$f":"IF(WEEKDAY(Kalendertag)=WochenanfangWert,CONCATENATE(\"Woche \",WEEKNUM(Kalendertag),\"/Tag \",Kalendertag-DATE(YEAR(Kalendertag),1,0)),CONCATENATE(\"Tag \",Kalendertag-DATE(YEAR(Kalendertag),1,0)))","v":"Tag 213"},{"$f":"IF(WEEKDAY(Kalendertag)=WochenanfangWert,CONCATENATE(\"Woche \",WEEKNUM(Kalendertag),\"/Tag \",Kalendertag-DATE(YEAR(Kalendertag),1,0)),CONCATENATE(\"Tag \",Kalendertag-DATE(YEAR(Kalendertag),1,0)))","v":"Tag 214"},{"$f":"IF(WEEKDAY(Kalendertag)=WochenanfangWert,CONCATENATE(\"Woche \",WEEKNUM(Kalendertag),\"/Tag \",Kalendertag-DATE(YEAR(Kalendertag),1,0)),CONCATENATE(\"Tag \",Kalendertag-DATE(YEAR(Kalendertag),1,0)))","v":"Tag 215"},{"$f":"IF(WEEKDAY(Kalendertag)=WochenanfangWert,CONCATENATE(\"Woche \",WEEKNUM(Kalendertag),\"/Tag \",Kalendertag-DATE(YEAR(Kalendertag),1,0)),CONCATENATE(\"Tag \",Kalendertag-DATE(YEAR(Kalendertag),1,0)))","v":"Tag 216"}]
[{"$nulls":4},"NOTIZEN"]
[]
[null,null,{"$f":"TageUndWochen+DATE(Kalenderjahr,7,1)-WEEKDAY(DATE(Kalenderjahr,7,1),(Wochenanfang=\"MO\")+1)+36","v":"2018-08-05"},"2018-08-06"]
[null,null,{"$f":"IF(WEEKDAY(Kalendertag)=WochenanfangWert,CONCATENATE(\"Woche \",WEEKNUM(Kalendertag),\"/Tag \",Kalendertag-DATE(YEAR(Kalendertag),1,0)),CONCATENATE(\"Tag \",Kalendertag-DATE(YEAR(Kalendertag),1,0)))","v":"Woche 32/Tag 217"},{"$f":"IF(WEEKDAY(Kalendertag)=WochenanfangWert,CONCATENATE(\"Woche \",WEEKNUM(Kalendertag),\"/Tag \",Kalendertag-DATE(YEAR(Kalendertag),1,0)),CONCATENATE(\"Tag \",Kalendertag-DATE(YEAR(Kalendertag),1,0)))","v":"Tag 218"}]

{"sheet":"AUG","index":7,"n_rows":20,"n_cols":9,"rows_kept":20,"merged":[[16,2,17,2],[17,4,19,8]]}
[null,"AUG",{"$f":"UPPER(TEXT(Wochenanfang,\"ddd\"))","v":"SO"},{"$f":"UPPER(TEXT(D3,\"aaa\"))","v":"MO"},"DI","MI","DO","FR","SA"]
[null,{"$f":"Kalenderjahr","v":2018}]
[null,null,{"$f":"TageUndWochen+DATE(Kalenderjahr,8,1)-WEEKDAY(DATE(Kalenderjahr,8,1),(Wochenanfang=\"MO\")+1)+1","v":"2018-07-29"},"2018-07-30","2018-07-31","2018-08-01","2018-08-02","2018-08-03","2018-08-04"]
[null,null,{"$f":"IF(DAY(Kalendertag)=1,CONCATENATE(\"Woche \",WEEKNUM(Kalendertag),\"/Tag \",Kalendertag-DATE(YEAR(Kalendertag),1,0)),CONCATENATE(\"Tag \",Kalendertag-DATE(YEAR(Kalendertag),1,0)))","v":"Tag 210"},{"$f":"IF(DAY(Kalendertag)=1,CONCATENATE(\"Woche \",WEEKNUM(Kalendertag),\"/Tag \",Kalendertag-DATE(YEAR(Kalendertag),1,0)),CONCATENATE(\"Tag \",Kalendertag-DATE(YEAR(Kalendertag),1,0)))","v":"Tag 211"},{"$f":"IF(DAY(Kalendertag)=1,CONCATENATE(\"Woche \",WEEKNUM(Kalendertag),\"/Tag \",Kalendertag-DATE(YEAR(Kalendertag),1,0)),CONCATENATE(\"Tag \",Kalendertag-DATE(YEAR(Kalendertag),1,0)))","v":"Tag 212"},{"$f":"IF(DAY(Kalendertag)=1,CONCATENATE(\"Woche \",WEEKNUM(Kalendertag),\"/Tag \",Kalendertag-DATE(YEAR(Kalendertag),1,0)),CONCATENATE(\"Tag \",Kalendertag-DATE(YEAR(Kalendertag),1,0)))","v":"Woche 31/Tag 213"},{"$f":"IF(DAY(Kalendertag)=1,CONCATENATE(\"Woche \",WEEKNUM(Kalendertag),\"/Tag \",Kalendertag-DATE(YEAR(Kalendertag),1,0)),CONCATENATE(\"Tag \",Kalendertag-DATE(YEAR(Kalendertag),1,0)))","v":"Tag 214"},{"$f":"IF(DAY(Kalendertag)=1,CONCATENATE(\"Woche \",WEEKNUM(Kalendertag),\"/Tag \",Kalendertag-DATE(YEAR(Kalendertag),1,0)),CONCATENATE(\"Tag \",Kalendertag-DATE(YEAR(Kalendertag),1,0)))","v":"Tag 215"},{"$f":"IF(DAY(Kalendertag)=1,CONCATENATE(\"Woche \",WEEKNUM(Kalendertag),\"/Tag \",Kalendertag-DATE(YEAR(Kalendertag),1,0)),CONCATENATE(\"Tag \",Kalendertag-DATE(YEAR(Kalendertag),1,0)))","v":"Tag 216"}]
[]
[null,null,{"$f":"TageUndWochen+DATE(Kalenderjahr,8,1)-WEEKDAY(DATE(Kalenderjahr,8,1),(Wochenanfang=\"MO\")+1)+8","v":"2018-08-05"},"2018-08-06","2018-08-07","2018-08-08","2018-08-09","2018-08-10","2018-08-11"]
[null,null,{"$f":"IF(WEEKDAY(Kalendertag)=WochenanfangWert,CONCATENATE(\"Woche \",WEEKNUM(Kalendertag),\"/Tag \",Kalendertag-DATE(YEAR(Kalendertag),1,0)),CONCATENATE(\"Tag \",Kalendertag-DATE(YEAR(Kalendertag),1,0)))","v":"Woche 32/Tag 217"},{"$f":"IF(WEEKDAY(Kalendertag)=WochenanfangWert,CONCATENATE(\"Woche \",WEEKNUM(Kalendertag),\"/Tag \",Kalendertag-DATE(YEAR(Kalendertag),1,0)),CONCATENATE(\"Tag \",Kalendertag-DATE(YEAR(Kalendertag),1,0)))","v":"Tag 218"},{"$f":"IF(WEEKDAY(Kalendertag)=WochenanfangWert,CONCATENATE(\"Woche \",WEEKNUM(Kalendertag),\"/Tag \",Kalendertag-DATE(YEAR(Kalendertag),1,0)),CONCATENATE(\"Tag \",Kalendertag-DATE(YEAR(Kalendertag),1,0)))","v":"Tag 219"},{"$f":"IF(WEEKDAY(Kalendertag)=WochenanfangWert,CONCATENATE(\"Woche \",WEEKNUM(Kalendertag),\"/Tag \",Kalendertag-DATE(YEAR(Kalendertag),1,0)),CONCATENATE(\"Tag \",Kalendertag-DATE(YEAR(Kalendertag),1,0)))","v":"Tag 220"},{"$f":"IF(WEEKDAY(Kalendertag)=WochenanfangWert,CONCATENATE(\"Woche \",WEEKNUM(Kalendertag),\"/Tag \",Kalendertag-DATE(YEAR(Kalendertag),1,0)),CONCATENATE(\"Tag \",Kalendertag-DATE(YEAR(Kalendertag),1,0)))","v":"Tag 221"},{"$f":"IF(WEEKDAY(Kalendertag)=WochenanfangWert,CONCATENATE(\"Woche \",WEEKNUM(Kalendertag),\"/Tag \",Kalendertag-DATE(YEAR(Kalendertag),1,0)),CONCATENATE(\"Tag \",Kalendertag-DATE(YEAR(Kalendertag),1,0)))","v":"Tag 222"},{"$f":"IF(WEEKDAY(Kalendertag)=WochenanfangWert,CONCATENATE(\"Woche \",WEEKNUM(Kalendertag),\"/Tag \",Kalendertag-DATE(YEAR(Kalendertag),1,0)),CONCATENATE(\"Tag \",Kalendertag-DATE(YEAR(Kalendertag),1,0)))","v":"Tag 223"}]
[]
[null,null,{"$f":"TageUndWochen+DATE(Kalenderjahr,8,1)-WEEKDAY(DATE(Kalenderjahr,8,1),(Wochenanfang=\"MO\")+1)+15","v":"2018-08-12"},"2018-08-13","2018-08-14","2018-08-15","2018-08-16","2018-08-17","2018-08-18"]
[null,null,{"$f":"IF(WEEKDAY(Kalendertag)=WochenanfangWert,CONCATENATE(\"Woche \",WEEKNUM(Kalendertag),\"/Tag \",Kalendertag-DATE(YEAR(Kalendertag),1,0)),CONCATENATE(\"Tag \",Kalendertag-DATE(YEAR(Kalendertag),1,0)))","v":"Woche 33/Tag 224"},{"$f":"IF(WEEKDAY(Kalendertag)=WochenanfangWert,CONCATENATE(\"Woche \",WEEKNUM(Kalendertag),\"/Tag \",Kalendertag-DATE(YEAR(Kalendertag),1,0)),CONCATENATE(\"Tag \",Kalendertag-DATE(YEAR(Kalendertag),1,0)))","v":"Tag 225"},{"$f":"IF(WEEKDAY(Kalendertag)=WochenanfangWert,CONCATENATE(\"Woche \",WEEKNUM(Kalendertag),\"/Tag \",Kalendertag-DATE(YEAR(Kalendertag),1,0)),CONCATENATE(\"Tag \",Kalendertag-DATE(YEAR(Kalendertag),1,0)))","v":"Tag 226"},{"$f":"IF(WEEKDAY(Kalendertag)=WochenanfangWert,CONCATENATE(\"Woche \",WEEKNUM(Kalendertag),\"/Tag \",Kalendertag-DATE(YEAR(Kalendertag),1,0)),CONCATENATE(\"Tag \",Kalendertag-DATE(YEAR(Kalendertag),1,0)))","v":"Tag 227"},{"$f":"IF(WEEKDAY(Kalendertag)=WochenanfangWert,CONCATENATE(\"Woche \",WEEKNUM(Kalendertag),\"/Tag \",Kalendertag-DATE(YEAR(Kalendertag),1,0)),CONCATENATE(\"Tag \",Kalendertag-DATE(YEAR(Kalendertag),1,0)))","v":"Tag 228"},{"$f":"IF(WEEKDAY(Kalendertag)=WochenanfangWert,CONCATENATE(\"Woche \",WEEKNUM(Kalendertag),\"/Tag \",Kalendertag-DATE(YEAR(Kalendertag),1,0)),CONCATENATE(\"Tag \",Kalendertag-DATE(YEAR(Kalendertag),1,0)))","v":"Tag 229"},{"$f":"IF(WEEKDAY(Kalendertag)=WochenanfangWert,CONCATENATE(\"Woche \",WEEKNUM(Kalendertag),\"/Tag \",Kalendertag-DATE(YEAR(Kalendertag),1,0)),CONCATENATE(\"Tag \",Kalendertag-DATE(YEAR(Kalendertag),1,0)))","v":"Tag 230"}]
[]
[null,null,{"$f":"TageUndWochen+DATE(Kalenderjahr,8,1)-WEEKDAY(DATE(Kalenderjahr,8,1),(Wochenanfang=\"MO\")+1)+22","v":"2018-08-19"},"2018-08-20","2018-08-21","2018-08-22","2018-08-23","2018-08-24","2018-08-25"]
[null,null,{"$f":"IF(WEEKDAY(Kalendertag)=WochenanfangWert,CONCATENATE(\"Woche \",WEEKNUM(Kalendertag),\"/Tag \",Kalendertag-DATE(YEAR(Kalendertag),1,0)),CONCATENATE(\"Tag \",Kalendertag-DATE(YEAR(Kalendertag),1,0)))","v":"Woche 34/Tag 231"},{"$f":"IF(WEEKDAY(Kalendertag)=WochenanfangWert,CONCATENATE(\"Woche \",WEEKNUM(Kalendertag),\"/Tag \",Kalendertag-DATE(YEAR(Kalendertag),1,0)),CONCATENATE(\"Tag \",Kalendertag-DATE(YEAR(Kalendertag),1,0)))","v":"Tag 232"},{"$f":"IF(WEEKDAY(Kalendertag)=WochenanfangWert,CONCATENATE(\"Woche \",WEEKNUM(Kalendertag),\"/Tag \",Kalendertag-DATE(YEAR(Kalendertag),1,0)),CONCATENATE(\"Tag \",Kalendertag-DATE(YEAR(Kalendertag),1,0)))","v":"Tag 233"},{"$f":"IF(WEEKDAY(Kalendertag)=WochenanfangWert,CONCATENATE(\"Woche \",WEEKNUM(Kalendertag),\"/Tag \",Kalendertag-DATE(YEAR(Kalendertag),1,0)),CONCATENATE(\"Tag \",Kalendertag-DATE(YEAR(Kalendertag),1,0)))","v":"Tag 234"},{"$f":"IF(WEEKDAY(Kalendertag)=WochenanfangWert,CONCATENATE(\"Woche \",WEEKNUM(Kalendertag),\"/Tag \",Kalendertag-DATE(YEAR(Kalendertag),1,0)),CONCATENATE(\"Tag \",Kalendertag-DATE(YEAR(Kalendertag),1,0)))","v":"Tag 235"},{"$f":"IF(WEEKDAY(Kalendertag)=WochenanfangWert,CONCATENATE(\"Woche \",WEEKNUM(Kalendertag),\"/Tag \",Kalendertag-DATE(YEAR(Kalendertag),1,0)),CONCATENATE(\"Tag \",Kalendertag-DATE(YEAR(Kalendertag),1,0)))","v":"Tag 236"},{"$f":"IF(WEEKDAY(Kalendertag)=WochenanfangWert,CONCATENATE(\"Woche \",WEEKNUM(Kalendertag),\"/Tag \",Kalendertag-DATE(YEAR(Kalendertag),1,0)),CONCATENATE(\"Tag \",Kalendertag-DATE(YEAR(Kalendertag),1,0)))","v":"Tag 237"}]
[]
[null,null,{"$f":"TageUndWochen+DATE(Kalenderjahr,8,1)-WEEKDAY(DATE(Kalenderjahr,8,1),(Wochenanfang=\"MO\")+1)+29","v":"2018-08-26"},"2018-08-27","2018-08-28","2018-08-29","2018-08-30","2018-08-31","2018-09-01"]
[null,null,{"$f":"IF(WEEKDAY(Kalendertag)=WochenanfangWert,CONCATENATE(\"Woche \",WEEKNUM(Kalendertag),\"/Tag \",Kalendertag-DATE(YEAR(Kalendertag),1,0)),CONCATENATE(\"Tag \",Kalendertag-DATE(YEAR(Kalendertag),1,0)))","v":"Woche 35/Tag 238"},{"$f":"IF(WEEKDAY(Kalendertag)=WochenanfangWert,CONCATENATE(\"Woche \",WEEKNUM(Kalendertag),\"/Tag \",Kalendertag-DATE(YEAR(Kalendertag),1,0)),CONCATENATE(\"Tag \",Kalendertag-DATE(YEAR(Kalendertag),1,0)))","v":"Tag 239"},{"$f":"IF(WEEKDAY(Kalendertag)=WochenanfangWert,CONCATENATE(\"Woche \",WEEKNUM(Kalendertag),\"/Tag \",Kalendertag-DATE(YEAR(Kalendertag),1,0)),CONCATENATE(\"Tag \",Kalendertag-DATE(YEAR(Kalendertag),1,0)))","v":"Tag 240"},{"$f":"IF(WEEKDAY(Kalendertag)=WochenanfangWert,CONCATENATE(\"Woche \",WEEKNUM(Kalendertag),\"/Tag \",Kalendertag-DATE(YEAR(Kalendertag),1,0)),CONCATENATE(\"Tag \",Kalendertag-DATE(YEAR(Kalendertag),1,0)))","v":"Tag 241"},{"$f":"IF(WEEKDAY(Kalendertag)=WochenanfangWert,CONCATENATE(\"Woche \",WEEKNUM(Kalendertag),\"/Tag \",Kalendertag-DATE(YEAR(Kalendertag),1,0)),CONCATENATE(\"Tag \",Kalendertag-DATE(YEAR(Kalendertag),1,0)))","v":"Tag 242"},{"$f":"IF(WEEKDAY(Kalendertag)=WochenanfangWert,CONCATENATE(\"Woche \",WEEKNUM(Kalendertag),\"/Tag \",Kalendertag-DATE(YEAR(Kalendertag),1,0)),CONCATENATE(\"Tag \",Kalendertag-DATE(YEAR(Kalendertag),1,0)))","v":"Tag 243"},{"$f":"IF(WEEKDAY(Kalendertag)=WochenanfangWert,CONCATENATE(\"Woche \",WEEKNUM(Kalendertag),\"/Tag \",Kalendertag-DATE(YEAR(Kalendertag),1,0)),CONCATENATE(\"Tag \",Kalendertag-DATE(YEAR(Kalendertag),1,0)))","v":"Tag 244"}]
[{"$nulls":4},"NOTIZEN"]
[]
[null,null,{"$f":"TageUndWochen+DATE(Kalenderjahr,8,1)-WEEKDAY(DATE(Kalenderjahr,8,1),(Wochenanfang=\"MO\")+1)+36","v":"2018-09-02"},"2018-09-03"]
[null,null,{"$f":"IF(WEEKDAY(Kalendertag)=WochenanfangWert,CONCATENATE(\"Woche \",WEEKNUM(Kalendertag),\"/Tag \",Kalendertag-DATE(YEAR(Kalendertag),1,0)),CONCATENATE(\"Tag \",Kalendertag-DATE(YEAR(Kalendertag),1,0)))","v":"Woche 36/Tag 245"},{"$f":"IF(WEEKDAY(Kalendertag)=WochenanfangWert,CONCATENATE(\"Woche \",WEEKNUM(Kalendertag),\"/Tag \",Kalendertag-DATE(YEAR(Kalendertag),1,0)),CONCATENATE(\"Tag \",Kalendertag-DATE(YEAR(Kalendertag),1,0)))","v":"Tag 246"}]

{"sheet":"SEP","index":8,"n_rows":20,"n_cols":9,"rows_kept":20,"merged":[[16,2,17,2],[17,4,19,8]]}
[null,"SEP",{"$f":"UPPER(TEXT(Wochenanfang,\"ddd\"))","v":"SO"},{"$f":"UPPER(TEXT(D3,\"aaa\"))","v":"MO"},"DI","MI","DO","FR","SA"]
[null,{"$f":"Kalenderjahr","v":2018}]
[null,null,{"$f":"TageUndWochen+DATE(Kalenderjahr,9,1)-WEEKDAY(DATE(Kalenderjahr,9,1),(Wochenanfang=\"MO\")+1)+1","v":"2018-08-26"},"2018-08-27","2018-08-28","2018-08-29","2018-08-30","2018-08-31","2018-09-01"]
[null,null,{"$f":"IF(DAY(Kalendertag)=1,CONCATENATE(\"Woche \",WEEKNUM(Kalendertag),\"/Tag \",Kalendertag-DATE(YEAR(Kalendertag),1,0)),CONCATENATE(\"Tag \",Kalendertag-DATE(YEAR(Kalendertag),1,0)))","v":"Tag 238"},{"$f":"IF(DAY(Kalendertag)=1,CONCATENATE(\"Woche \",WEEKNUM(Kalendertag),\"/Tag \",Kalendertag-DATE(YEAR(Kalendertag),1,0)),CONCATENATE(\"Tag \",Kalendertag-DATE(YEAR(Kalendertag),1,0)))","v":"Tag 239"},{"$f":"IF(DAY(Kalendertag)=1,CONCATENATE(\"Woche \",WEEKNUM(Kalendertag),\"/Tag \",Kalendertag-DATE(YEAR(Kalendertag),1,0)),CONCATENATE(\"Tag \",Kalendertag-DATE(YEAR(Kalendertag),1,0)))","v":"Tag 240"},{"$f":"IF(DAY(Kalendertag)=1,CONCATENATE(\"Woche \",WEEKNUM(Kalendertag),\"/Tag \",Kalendertag-DATE(YEAR(Kalendertag),1,0)),CONCATENATE(\"Tag \",Kalendertag-DATE(YEAR(Kalendertag),1,0)))","v":"Tag 241"},{"$f":"IF(DAY(Kalendertag)=1,CONCATENATE(\"Woche \",WEEKNUM(Kalendertag),\"/Tag \",Kalendertag-DATE(YEAR(Kalendertag),1,0)),CONCATENATE(\"Tag \",Kalendertag-DATE(YEAR(Kalendertag),1,0)))","v":"Tag 242"},{"$f":"IF(DAY(Kalendertag)=1,CONCATENATE(\"Woche \",WEEKNUM(Kalendertag),\"/Tag \",Kalendertag-DATE(YEAR(Kalendertag),1,0)),CONCATENATE(\"Tag \",Kalendertag-DATE(YEAR(Kalendertag),1,0)))","v":"Tag 243"},{"$f":"IF(DAY(Kalendertag)=1,CONCATENATE(\"Woche \",WEEKNUM(Kalendertag),\"/Tag \",Kalendertag-DATE(YEAR(Kalendertag),1,0)),CONCATENATE(\"Tag \",Kalendertag-DATE(YEAR(Kalendertag),1,0)))","v":"Woche 35/Tag 244"}]
[]
[null,null,{"$f":"TageUndWochen+DATE(Kalenderjahr,9,1)-WEEKDAY(DATE(Kalenderjahr,9,1),(Wochenanfang=\"MO\")+1)+8","v":"2018-09-02"},"2018-09-03","2018-09-04","2018-09-05","2018-09-06","2018-09-07","2018-09-08"]
[null,null,{"$f":"IF(WEEKDAY(Kalendertag)=WochenanfangWert,CONCATENATE(\"Woche \",WEEKNUM(Kalendertag),\"/Tag \",Kalendertag-DATE(YEAR(Kalendertag),1,0)),CONCATENATE(\"Tag \",Kalendertag-DATE(YEAR(Kalendertag),1,0)))","v":"Woche 36/Tag 245"},{"$f":"IF(WEEKDAY(Kalendertag)=WochenanfangWert,CONCATENATE(\"Woche \",WEEKNUM(Kalendertag),\"/Tag \",Kalendertag-DATE(YEAR(Kalendertag),1,0)),CONCATENATE(\"Tag \",Kalendertag-DATE(YEAR(Kalendertag),1,0)))","v":"Tag 246"},{"$f":"IF(WEEKDAY(Kalendertag)=WochenanfangWert,CONCATENATE(\"Woche \",WEEKNUM(Kalendertag),\"/Tag \",Kalendertag-DATE(YEAR(Kalendertag),1,0)),CONCATENATE(\"Tag \",Kalendertag-DATE(YEAR(Kalendertag),1,0)))","v":"Tag 247"},{"$f":"IF(WEEKDAY(Kalendertag)=WochenanfangWert,CONCATENATE(\"Woche \",WEEKNUM(Kalendertag),\"/Tag \",Kalendertag-DATE(YEAR(Kalendertag),1,0)),CONCATENATE(\"Tag \",Kalendertag-DATE(YEAR(Kalendertag),1,0)))","v":"Tag 248"},{"$f":"IF(WEEKDAY(Kalendertag)=WochenanfangWert,CONCATENATE(\"Woche \",WEEKNUM(Kalendertag),\"/Tag \",Kalendertag-DATE(YEAR(Kalendertag),1,0)),CONCATENATE(\"Tag \",Kalendertag-DATE(YEAR(Kalendertag),1,0)))","v":"Tag 249"},{"$f":"IF(WEEKDAY(Kalendertag)=WochenanfangWert,CONCATENATE(\"Woche \",WEEKNUM(Kalendertag),\"/Tag \",Kalendertag-DATE(YEAR(Kalendertag),1,0)),CONCATENATE(\"Tag \",Kalendertag-DATE(YEAR(Kalendertag),1,0)))","v":"Tag 250"},{"$f":"IF(WEEKDAY(Kalendertag)=WochenanfangWert,CONCATENATE(\"Woche \",WEEKNUM(Kalendertag),\"/Tag \",Kalendertag-DATE(YEAR(Kalendertag),1,0)),CONCATENATE(\"Tag \",Kalendertag-DATE(YEAR(Kalendertag),1,0)))","v":"Tag 251"}]
[]
[null,null,{"$f":"TageUndWochen+DATE(Kalenderjahr,9,1)-WEEKDAY(DATE(Kalenderjahr,9,1),(Wochenanfang=\"MO\")+1)+15","v":"2018-09-09"},"2018-09-10","2018-09-11","2018-09-12","2018-09-13","2018-09-14","2018-09-15"]
[null,null,{"$f":"IF(WEEKDAY(Kalendertag)=WochenanfangWert,CONCATENATE(\"Woche \",WEEKNUM(Kalendertag),\"/Tag \",Kalendertag-DATE(YEAR(Kalendertag),1,0)),CONCATENATE(\"Tag \",Kalendertag-DATE(YEAR(Kalendertag),1,0)))","v":"Woche 37/Tag 252"},{"$f":"IF(WEEKDAY(Kalendertag)=WochenanfangWert,CONCATENATE(\"Woche \",WEEKNUM(Kalendertag),\"/Tag \",Kalendertag-DATE(YEAR(Kalendertag),1,0)),CONCATENATE(\"Tag \",Kalendertag-DATE(YEAR(Kalendertag),1,0)))","v":"Tag 253"},{"$f":"IF(WEEKDAY(Kalendertag)=WochenanfangWert,CONCATENATE(\"Woche \",WEEKNUM(Kalendertag),\"/Tag \",Kalendertag-DATE(YEAR(Kalendertag),1,0)),CONCATENATE(\"Tag \",Kalendertag-DATE(YEAR(Kalendertag),1,0)))","v":"Tag 254"},{"$f":"IF(WEEKDAY(Kalendertag)=WochenanfangWert,CONCATENATE(\"Woche \",WEEKNUM(Kalendertag),\"/Tag \",Kalendertag-DATE(YEAR(Kalendertag),1,0)),CONCATENATE(\"Tag \",Kalendertag-DATE(YEAR(Kalendertag),1,0)))","v":"Tag 255"},{"$f":"IF(WEEKDAY(Kalendertag)=WochenanfangWert,CONCATENATE(\"Woche \",WEEKNUM(Kalendertag),\"/Tag \",Kalendertag-DATE(YEAR(Kalendertag),1,0)),CONCATENATE(\"Tag \",Kalendertag-DATE(YEAR(Kalendertag),1,0)))","v":"Tag 256"},{"$f":"IF(WEEKDAY(Kalendertag)=WochenanfangWert,CONCATENATE(\"Woche \",WEEKNUM(Kalendertag),\"/Tag \",Kalendertag-DATE(YEAR(Kalendertag),1,0)),CONCATENATE(\"Tag \",Kalendertag-DATE(YEAR(Kalendertag),1,0)))","v":"Tag 257"},{"$f":"IF(WEEKDAY(Kalendertag)=WochenanfangWert,CONCATENATE(\"Woche \",WEEKNUM(Kalendertag),\"/Tag \",Kalendertag-DATE(YEAR(Kalendertag),1,0)),CONCATENATE(\"Tag \",Kalendertag-DATE(YEAR(Kalendertag),1,0)))","v":"Tag 258"}]
[]
[null,null,{"$f":"TageUndWochen+DATE(Kalenderjahr,9,1)-WEEKDAY(DATE(Kalenderjahr,9,1),(Wochenanfang=\"MO\")+1)+22","v":"2018-09-16"},"2018-09-17","2018-09-18","2018-09-19","2018-09-20","2018-09-21","2018-09-22"]
[null,null,{"$f":"IF(WEEKDAY(Kalendertag)=WochenanfangWert,CONCATENATE(\"Woche \",WEEKNUM(Kalendertag),\"/Tag \",Kalendertag-DATE(YEAR(Kalendertag),1,0)),CONCATENATE(\"Tag \",Kalendertag-DATE(YEAR(Kalendertag),1,0)))","v":"Woche 38/Tag 259"},{"$f":"IF(WEEKDAY(Kalendertag)=WochenanfangWert,CONCATENATE(\"Woche \",WEEKNUM(Kalendertag),\"/Tag \",Kalendertag-DATE(YEAR(Kalendertag),1,0)),CONCATENATE(\"Tag \",Kalendertag-DATE(YEAR(Kalendertag),1,0)))","v":"Tag 260"},{"$f":"IF(WEEKDAY(Kalendertag)=WochenanfangWert,CONCATENATE(\"Woche \",WEEKNUM(Kalendertag),\"/Tag \",Kalendertag-DATE(YEAR(Kalendertag),1,0)),CONCATENATE(\"Tag \",Kalendertag-DATE(YEAR(Kalendertag),1,0)))","v":"Tag 261"},{"$f":"IF(WEEKDAY(Kalendertag)=WochenanfangWert,CONCATENATE(\"Woche \",WEEKNUM(Kalendertag),\"/Tag \",Kalendertag-DATE(YEAR(Kalendertag),1,0)),CONCATENATE(\"Tag \",Kalendertag-DATE(YEAR(Kalendertag),1,0)))","v":"Tag 262"},{"$f":"IF(WEEKDAY(Kalendertag)=WochenanfangWert,CONCATENATE(\"Woche \",WEEKNUM(Kalendertag),\"/Tag \",Kalendertag-DATE(YEAR(Kalendertag),1,0)),CONCATENATE(\"Tag \",Kalendertag-DATE(YEAR(Kalendertag),1,0)))","v":"Tag 263"},{"$f":"IF(WEEKDAY(Kalendertag)=WochenanfangWert,CONCATENATE(\"Woche \",WEEKNUM(Kalendertag),\"/Tag \",Kalendertag-DATE(YEAR(Kalendertag),1,0)),CONCATENATE(\"Tag \",Kalendertag-DATE(YEAR(Kalendertag),1,0)))","v":"Tag 264"},{"$f":"IF(WEEKDAY(Kalendertag)=WochenanfangWert,CONCATENATE(\"Woche \",WEEKNUM(Kalendertag),\"/Tag \",Kalendertag-DATE(YEAR(Kalendertag),1,0)),CONCATENATE(\"Tag \",Kalendertag-DATE(YEAR(Kalendertag),1,0)))","v":"Tag 265"}]
[]
[null,null,{"$f":"TageUndWochen+DATE(Kalenderjahr,9,1)-WEEKDAY(DATE(Kalenderjahr,9,1),(Wochenanfang=\"MO\")+1)+29","v":"2018-09-23"},"2018-09-24","2018-09-25","2018-09-26","2018-09-27","2018-09-28","2018-09-29"]
[null,null,{"$f":"IF(WEEKDAY(Kalendertag)=WochenanfangWert,CONCATENATE(\"Woche \",WEEKNUM(Kalendertag),\"/Tag \",Kalendertag-DATE(YEAR(Kalendertag),1,0)),CONCATENATE(\"Tag \",Kalendertag-DATE(YEAR(Kalendertag),1,0)))","v":"Woche 39/Tag 266"},{"$f":"IF(WEEKDAY(Kalendertag)=WochenanfangWert,CONCATENATE(\"Woche \",WEEKNUM(Kalendertag),\"/Tag \",Kalendertag-DATE(YEAR(Kalendertag),1,0)),CONCATENATE(\"Tag \",Kalendertag-DATE(YEAR(Kalendertag),1,0)))","v":"Tag 267"},{"$f":"IF(WEEKDAY(Kalendertag)=WochenanfangWert,CONCATENATE(\"Woche \",WEEKNUM(Kalendertag),\"/Tag \",Kalendertag-DATE(YEAR(Kalendertag),1,0)),CONCATENATE(\"Tag \",Kalendertag-DATE(YEAR(Kalendertag),1,0)))","v":"Tag 268"},{"$f":"IF(WEEKDAY(Kalendertag)=WochenanfangWert,CONCATENATE(\"Woche \",WEEKNUM(Kalendertag),\"/Tag \",Kalendertag-DATE(YEAR(Kalendertag),1,0)),CONCATENATE(\"Tag \",Kalendertag-DATE(YEAR(Kalendertag),1,0)))","v":"Tag 269"},{"$f":"IF(WEEKDAY(Kalendertag)=WochenanfangWert,CONCATENATE(\"Woche \",WEEKNUM(Kalendertag),\"/Tag \",Kalendertag-DATE(YEAR(Kalendertag),1,0)),CONCATENATE(\"Tag \",Kalendertag-DATE(YEAR(Kalendertag),1,0)))","v":"Tag 270"},{"$f":"IF(WEEKDAY(Kalendertag)=WochenanfangWert,CONCATENATE(\"Woche \",WEEKNUM(Kalendertag),\"/Tag \",Kalendertag-DATE(YEAR(Kalendertag),1,0)),CONCATENATE(\"Tag \",Kalendertag-DATE(YEAR(Kalendertag),1,0)))","v":"Tag 271"},{"$f":"IF(WEEKDAY(Kalendertag)=WochenanfangWert,CONCATENATE(\"Woche \",WEEKNUM(Kalendertag),\"/Tag \",Kalendertag-DATE(YEAR(Kalendertag),1,0)),CONCATENATE(\"Tag \",Kalendertag-DATE(YEAR(Kalendertag),1,0)))","v":"Tag 272"}]
[{"$nulls":4},"NOTIZEN"]
[]
[null,null,{"$f":"TageUndWochen+DATE(Kalenderjahr,9,1)-WEEKDAY(DATE(Kalenderjahr,9,1),(Wochenanfang=\"MO\")+1)+36","v":"2018-09-30"},"2018-10-01"]
[null,null,{"$f":"IF(WEEKDAY(Kalendertag)=WochenanfangWert,CONCATENATE(\"Woche \",WEEKNUM(Kalendertag),\"/Tag \",Kalendertag-DATE(YEAR(Kalendertag),1,0)),CONCATENATE(\"Tag \",Kalendertag-DATE(YEAR(Kalendertag),1,0)))","v":"Woche 40/Tag 273"},{"$f":"IF(WEEKDAY(Kalendertag)=WochenanfangWert,CONCATENATE(\"Woche \",WEEKNUM(Kalendertag),\"/Tag \",Kalendertag-DATE(YEAR(Kalendertag),1,0)),CONCATENATE(\"Tag \",Kalendertag-DATE(YEAR(Kalendertag),1,0)))","v":"Tag 274"}]

{"sheet":"OKT","index":9,"n_rows":20,"n_cols":9,"rows_kept":20,"merged":[[16,2,17,2],[17,4,19,8]]}
[null,"OKT",{"$f":"UPPER(TEXT(Wochenanfang,\"ddd\"))","v":"SO"},{"$f":"UPPER(TEXT(D3,\"aaa\"))","v":"MO"},"DI","MI","DO","FR","SA"]
[null,{"$f":"Kalenderjahr","v":2018}]
[null,null,{"$f":"TageUndWochen+DATE(Kalenderjahr,10,1)-WEEKDAY(DATE(Kalenderjahr,10,1),(Wochenanfang=\"MO\")+1)+1","v":"2018-09-30"},"2018-10-01","2018-10-02","2018-10-03","2018-10-04","2018-10-05","2018-10-06"]
[null,null,{"$f":"IF(DAY(Kalendertag)=1,CONCATENATE(\"Woche \",WEEKNUM(Kalendertag),\"/Tag \",Kalendertag-DATE(YEAR(Kalendertag),1,0)),CONCATENATE(\"Tag \",Kalendertag-DATE(YEAR(Kalendertag),1,0)))","v":"Tag 273"},{"$f":"IF(DAY(Kalendertag)=1,CONCATENATE(\"Woche \",WEEKNUM(Kalendertag),\"/Tag \",Kalendertag-DATE(YEAR(Kalendertag),1,0)),CONCATENATE(\"Tag \",Kalendertag-DATE(YEAR(Kalendertag),1,0)))","v":"Woche 40/Tag 274"},{"$f":"IF(DAY(Kalendertag)=1,CONCATENATE(\"Woche \",WEEKNUM(Kalendertag),\"/Tag \",Kalendertag-DATE(YEAR(Kalendertag),1,0)),CONCATENATE(\"Tag \",Kalendertag-DATE(YEAR(Kalendertag),1,0)))","v":"Tag 275"},{"$f":"IF(DAY(Kalendertag)=1,CONCATENATE(\"Woche \",WEEKNUM(Kalendertag),\"/Tag \",Kalendertag-DATE(YEAR(Kalendertag),1,0)),CONCATENATE(\"Tag \",Kalendertag-DATE(YEAR(Kalendertag),1,0)))","v":"Tag 276"},{"$f":"IF(DAY(Kalendertag)=1,CONCATENATE(\"Woche \",WEEKNUM(Kalendertag),\"/Tag \",Kalendertag-DATE(YEAR(Kalendertag),1,0)),CONCATENATE(\"Tag \",Kalendertag-DATE(YEAR(Kalendertag),1,0)))","v":"Tag 277"},{"$f":"IF(DAY(Kalendertag)=1,CONCATENATE(\"Woche \",WEEKNUM(Kalendertag),\"/Tag \",Kalendertag-DATE(YEAR(Kalendertag),1,0)),CONCATENATE(\"Tag \",Kalendertag-DATE(YEAR(Kalendertag),1,0)))","v":"Tag 278"},{"$f":"IF(DAY(Kalendertag)=1,CONCATENATE(\"Woche \",WEEKNUM(Kalendertag),\"/Tag \",Kalendertag-DATE(YEAR(Kalendertag),1,0)),CONCATENATE(\"Tag \",Kalendertag-DATE(YEAR(Kalendertag),1,0)))","v":"Tag 279"}]
[]
[null,null,{"$f":"TageUndWochen+DATE(Kalenderjahr,10,1)-WEEKDAY(DATE(Kalenderjahr,10,1),(Wochenanfang=\"MO\")+1)+8","v":"2018-10-07"},"2018-10-08","2018-10-09","2018-10-10","2018-10-11","2018-10-12","2018-10-13"]
[null,null,{"$f":"IF(WEEKDAY(Kalendertag)=WochenanfangWert,CONCATENATE(\"Woche \",WEEKNUM(Kalendertag),\"/Tag \",Kalendertag-DATE(YEAR(Kalendertag),1,0)),CONCATENATE(\"Tag \",Kalendertag-DATE(YEAR(Kalendertag),1,0)))","v":"Woche 41/Tag 280"},{"$f":"IF(WEEKDAY(Kalendertag)=WochenanfangWert,CONCATENATE(\"Woche \",WEEKNUM(Kalendertag),\"/Tag \",Kalendertag-DATE(YEAR(Kalendertag),1,0)),CONCATENATE(\"Tag \",Kalendertag-DATE(YEAR(Kalendertag),1,0)))","v":"Tag 281"},{"$f":"IF(WEEKDAY(Kalendertag)=WochenanfangWert,CONCATENATE(\"Woche \",WEEKNUM(Kalendertag),\"/Tag \",Kalendertag-DATE(YEAR(Kalendertag),1,0)),CONCATENATE(\"Tag \",Kalendertag-DATE(YEAR(Kalendertag),1,0)))","v":"Tag 282"},{"$f":"IF(WEEKDAY(Kalendertag)=WochenanfangWert,CONCATENATE(\"Woche \",WEEKNUM(Kalendertag),\"/Tag \",Kalendertag-DATE(YEAR(Kalendertag),1,0)),CONCATENATE(\"Tag \",Kalendertag-DATE(YEAR(Kalendertag),1,0)))","v":"Tag 283"},{"$f":"IF(WEEKDAY(Kalendertag)=WochenanfangWert,CONCATENATE(\"Woche \",WEEKNUM(Kalendertag),\"/Tag \",Kalendertag-DATE(YEAR(Kalendertag),1,0)),CONCATENATE(\"Tag \",Kalendertag-DATE(YEAR(Kalendertag),1,0)))","v":"Tag 284"},{"$f":"IF(WEEKDAY(Kalendertag)=WochenanfangWert,CONCATENATE(\"Woche \",WEEKNUM(Kalendertag),\"/Tag \",Kalendertag-DATE(YEAR(Kalendertag),1,0)),CONCATENATE(\"Tag \",Kalendertag-DATE(YEAR(Kalendertag),1,0)))","v":"Tag 285"},{"$f":"IF(WEEKDAY(Kalendertag)=WochenanfangWert,CONCATENATE(\"Woche \",WEEKNUM(Kalendertag),\"/Tag \",Kalendertag-DATE(YEAR(Kalendertag),1,0)),CONCATENATE(\"Tag \",Kalendertag-DATE(YEAR(Kalendertag),1,0)))","v":"Tag 286"}]
[]
[null,null,{"$f":"TageUndWochen+DATE(Kalenderjahr,10,1)-WEEKDAY(DATE(Kalenderjahr,10,1),(Wochenanfang=\"MO\")+1)+15","v":"2018-10-14"},"2018-10-15","2018-10-16","2018-10-17","2018-10-18","2018-10-19","2018-10-20"]
[null,null,{"$f":"IF(WEEKDAY(Kalendertag)=WochenanfangWert,CONCATENATE(\"Woche \",WEEKNUM(Kalendertag),\"/Tag \",Kalendertag-DATE(YEAR(Kalendertag),1,0)),CONCATENATE(\"Tag \",Kalendertag-DATE(YEAR(Kalendertag),1,0)))","v":"Woche 42/Tag 287"},{"$f":"IF(WEEKDAY(Kalendertag)=WochenanfangWert,CONCATENATE(\"Woche \",WEEKNUM(Kalendertag),\"/Tag \",Kalendertag-DATE(YEAR(Kalendertag),1,0)),CONCATENATE(\"Tag \",Kalendertag-DATE(YEAR(Kalendertag),1,0)))","v":"Tag 288"},{"$f":"IF(WEEKDAY(Kalendertag)=WochenanfangWert,CONCATENATE(\"Woche \",WEEKNUM(Kalendertag),\"/Tag \",Kalendertag-DATE(YEAR(Kalendertag),1,0)),CONCATENATE(\"Tag \",Kalendertag-DATE(YEAR(Kalendertag),1,0)))","v":"Tag 289"},{"$f":"IF(WEEKDAY(Kalendertag)=WochenanfangWert,CONCATENATE(\"Woche \",WEEKNUM(Kalendertag),\"/Tag \",Kalendertag-DATE(YEAR(Kalendertag),1,0)),CONCATENATE(\"Tag \",Kalendertag-DATE(YEAR(Kalendertag),1,0)))","v":"Tag 290"},{"$f":"IF(WEEKDAY(Kalendertag)=WochenanfangWert,CONCATENATE(\"Woche \",WEEKNUM(Kalendertag),\"/Tag \",Kalendertag-DATE(YEAR(Kalendertag),1,0)),CONCATENATE(\"Tag \",Kalendertag-DATE(YEAR(Kalendertag),1,0)))","v":"Tag 291"},{"$f":"IF(WEEKDAY(Kalendertag)=WochenanfangWert,CONCATENATE(\"Woche \",WEEKNUM(Kalendertag),\"/Tag \",Kalendertag-DATE(YEAR(Kalendertag),1,0)),CONCATENATE(\"Tag \",Kalendertag-DATE(YEAR(Kalendertag),1,0)))","v":"Tag 292"},{"$f":"IF(WEEKDAY(Kalendertag)=WochenanfangWert,CONCATENATE(\"Woche \",WEEKNUM(Kalendertag),\"/Tag \",Kalendertag-DATE(YEAR(Kalendertag),1,0)),CONCATENATE(\"Tag \",Kalendertag-DATE(YEAR(Kalendertag),1,0)))","v":"Tag 293"}]
[]
[null,null,{"$f":"TageUndWochen+DATE(Kalenderjahr,10,1)-WEEKDAY(DATE(Kalenderjahr,10,1),(Wochenanfang=\"MO\")+1)+22","v":"2018-10-21"},"2018-10-22","2018-10-23","2018-10-24","2018-10-25","2018-10-26","2018-10-27"]
[null,null,{"$f":"IF(WEEKDAY(Kalendertag)=WochenanfangWert,CONCATENATE(\"Woche \",WEEKNUM(Kalendertag),\"/Tag \",Kalendertag-DATE(YEAR(Kalendertag),1,0)),CONCATENATE(\"Tag \",Kalendertag-DATE(YEAR(Kalendertag),1,0)))","v":"Woche 43/Tag 294"},{"$f":"IF(WEEKDAY(Kalendertag)=WochenanfangWert,CONCATENATE(\"Woche \",WEEKNUM(Kalendertag),\"/Tag \",Kalendertag-DATE(YEAR(Kalendertag),1,0)),CONCATENATE(\"Tag \",Kalendertag-DATE(YEAR(Kalendertag),1,0)))","v":"Tag 295"},{"$f":"IF(WEEKDAY(Kalendertag)=WochenanfangWert,CONCATENATE(\"Woche \",WEEKNUM(Kalendertag),\"/Tag \",Kalendertag-DATE(YEAR(Kalendertag),1,0)),CONCATENATE(\"Tag \",Kalendertag-DATE(YEAR(Kalendertag),1,0)))","v":"Tag 296"},{"$f":"IF(WEEKDAY(Kalendertag)=WochenanfangWert,CONCATENATE(\"Woche \",WEEKNUM(Kalendertag),\"/Tag \",Kalendertag-DATE(YEAR(Kalendertag),1,0)),CONCATENATE(\"Tag \",Kalendertag-DATE(YEAR(Kalendertag),1,0)))","v":"Tag 297"},{"$f":"IF(WEEKDAY(Kalendertag)=WochenanfangWert,CONCATENATE(\"Woche \",WEEKNUM(Kalendertag),\"/Tag \",Kalendertag-DATE(YEAR(Kalendertag),1,0)),CONCATENATE(\"Tag \",Kalendertag-DATE(YEAR(Kalendertag),1,0)))","v":"Tag 298"},{"$f":"IF(WEEKDAY(Kalendertag)=WochenanfangWert,CONCATENATE(\"Woche \",WEEKNUM(Kalendertag),\"/Tag \",Kalendertag-DATE(YEAR(Kalendertag),1,0)),CONCATENATE(\"Tag \",Kalendertag-DATE(YEAR(Kalendertag),1,0)))","v":"Tag 299"},{"$f":"IF(WEEKDAY(Kalendertag)=WochenanfangWert,CONCATENATE(\"Woche \",WEEKNUM(Kalendertag),\"/Tag \",Kalendertag-DATE(YEAR(Kalendertag),1,0)),CONCATENATE(\"Tag \",Kalendertag-DATE(YEAR(Kalendertag),1,0)))","v":"Tag 300"}]
[]
[null,null,{"$f":"TageUndWochen+DATE(Kalenderjahr,10,1)-WEEKDAY(DATE(Kalenderjahr,10,1),(Wochenanfang=\"MO\")+1)+29","v":"2018-10-28"},"2018-10-29","2018-10-30","2018-10-31","2018-11-01","2018-11-02","2018-11-03"]
[null,null,{"$f":"IF(WEEKDAY(Kalendertag)=WochenanfangWert,CONCATENATE(\"Woche \",WEEKNUM(Kalendertag),\"/Tag \",Kalendertag-DATE(YEAR(Kalendertag),1,0)),CONCATENATE(\"Tag \",Kalendertag-DATE(YEAR(Kalendertag),1,0)))","v":"Woche 44/Tag 301"},{"$f":"IF(WEEKDAY(Kalendertag)=WochenanfangWert,CONCATENATE(\"Woche \",WEEKNUM(Kalendertag),\"/Tag \",Kalendertag-DATE(YEAR(Kalendertag),1,0)),CONCATENATE(\"Tag \",Kalendertag-DATE(YEAR(Kalendertag),1,0)))","v":"Tag 302"},{"$f":"IF(WEEKDAY(Kalendertag)=WochenanfangWert,CONCATENATE(\"Woche \",WEEKNUM(Kalendertag),\"/Tag \",Kalendertag-DATE(YEAR(Kalendertag),1,0)),CONCATENATE(\"Tag \",Kalendertag-DATE(YEAR(Kalendertag),1,0)))","v":"Tag 303"},{"$f":"IF(WEEKDAY(Kalendertag)=WochenanfangWert,CONCATENATE(\"Woche \",WEEKNUM(Kalendertag),\"/Tag \",Kalendertag-DATE(YEAR(Kalendertag),1,0)),CONCATENATE(\"Tag \",Kalendertag-DATE(YEAR(Kalendertag),1,0)))","v":"Tag 304"},{"$f":"IF(WEEKDAY(Kalendertag)=WochenanfangWert,CONCATENATE(\"Woche \",WEEKNUM(Kalendertag),\"/Tag \",Kalendertag-DATE(YEAR(Kalendertag),1,0)),CONCATENATE(\"Tag \",Kalendertag-DATE(YEAR(Kalendertag),1,0)))","v":"Tag 305"},{"$f":"IF(WEEKDAY(Kalendertag)=WochenanfangWert,CONCATENATE(\"Woche \",WEEKNUM(Kalendertag),\"/Tag \",Kalendertag-DATE(YEAR(Kalendertag),1,0)),CONCATENATE(\"Tag \",Kalendertag-DATE(YEAR(Kalendertag),1,0)))","v":"Tag 306"},{"$f":"IF(WEEKDAY(Kalendertag)=WochenanfangWert,CONCATENATE(\"Woche \",WEEKNUM(Kalendertag),\"/Tag \",Kalendertag-DATE(YEAR(Kalendertag),1,0)),CONCATENATE(\"Tag \",Kalendertag-DATE(YEAR(Kalendertag),1,0)))","v":"Tag 307"}]
[{"$nulls":4},"NOTIZEN"]
[]
[null,null,{"$f":"TageUndWochen+DATE(Kalenderjahr,10,1)-WEEKDAY(DATE(Kalenderjahr,10,1),(Wochenanfang=\"MO\")+1)+36","v":"2018-11-04"},"2018-11-05"]
[null,null,{"$f":"IF(WEEKDAY(Kalendertag)=WochenanfangWert,CONCATENATE(\"Woche \",WEEKNUM(Kalendertag),\"/Tag \",Kalendertag-DATE(YEAR(Kalendertag),1,0)),CONCATENATE(\"Tag \",Kalendertag-DATE(YEAR(Kalendertag),1,0)))","v":"Woche 45/Tag 308"},{"$f":"IF(WEEKDAY(Kalendertag)=WochenanfangWert,CONCATENATE(\"Woche \",WEEKNUM(Kalendertag),\"/Tag \",Kalendertag-DATE(YEAR(Kalendertag),1,0)),CONCATENATE(\"Tag \",Kalendertag-DATE(YEAR(Kalendertag),1,0)))","v":"Tag 309"}]

{"sheet":"NOV","index":10,"n_rows":20,"n_cols":9,"rows_kept":20,"merged":[[16,2,17,2],[17,4,19,8]]}
[null,"NOV",{"$f":"UPPER(TEXT(Wochenanfang,\"ddd\"))","v":"SO"},{"$f":"UPPER(TEXT(D3,\"aaa\"))","v":"MO"},"DI","MI","DO","FR","SA"]
[null,{"$f":"Kalenderjahr","v":2018}]
[null,null,{"$f":"TageUndWochen+DATE(Kalenderjahr,11,1)-WEEKDAY(DATE(Kalenderjahr,11,1),(Wochenanfang=\"MO\")+1)+1","v":"2018-10-28"},"2018-10-29","2018-10-30","2018-10-31","2018-11-01","2018-11-02","2018-11-03"]
[null,null,{"$f":"IF(DAY(Kalendertag)=1,CONCATENATE(\"Woche \",WEEKNUM(Kalendertag),\"/Tag \",Kalendertag-DATE(YEAR(Kalendertag),1,0)),CONCATENATE(\"Tag \",Kalendertag-DATE(YEAR(Kalendertag),1,0)))","v":"Tag 301"},{"$f":"IF(DAY(Kalendertag)=1,CONCATENATE(\"Woche \",WEEKNUM(Kalendertag),\"/Tag \",Kalendertag-DATE(YEAR(Kalendertag),1,0)),CONCATENATE(\"Tag \",Kalendertag-DATE(YEAR(Kalendertag),1,0)))","v":"Tag 302"},{"$f":"IF(DAY(Kalendertag)=1,CONCATENATE(\"Woche \",WEEKNUM(Kalendertag),\"/Tag \",Kalendertag-DATE(YEAR(Kalendertag),1,0)),CONCATENATE(\"Tag \",Kalendertag-DATE(YEAR(Kalendertag),1,0)))","v":"Tag 303"},{"$f":"IF(DAY(Kalendertag)=1,CONCATENATE(\"Woche \",WEEKNUM(Kalendertag),\"/Tag \",Kalendertag-DATE(YEAR(Kalendertag),1,0)),CONCATENATE(\"Tag \",Kalendertag-DATE(YEAR(Kalendertag),1,0)))","v":"Tag 304"},{"$f":"IF(DAY(Kalendertag)=1,CONCATENATE(\"Woche \",WEEKNUM(Kalendertag),\"/Tag \",Kalendertag-DATE(YEAR(Kalendertag),1,0)),CONCATENATE(\"Tag \",Kalendertag-DATE(YEAR(Kalendertag),1,0)))","v":"Woche 44/Tag 305"},{"$f":"IF(DAY(Kalendertag)=1,CONCATENATE(\"Woche \",WEEKNUM(Kalendertag),\"/Tag \",Kalendertag-DATE(YEAR(Kalendertag),1,0)),CONCATENATE(\"Tag \",Kalendertag-DATE(YEAR(Kalendertag),1,0)))","v":"Tag 306"},{"$f":"IF(DAY(Kalendertag)=1,CONCATENATE(\"Woche \",WEEKNUM(Kalendertag),\"/Tag \",Kalendertag-DATE(YEAR(Kalendertag),1,0)),CONCATENATE(\"Tag \",Kalendertag-DATE(YEAR(Kalendertag),1,0)))","v":"Tag 307"}]
[]
[null,null,{"$f":"TageUndWochen+DATE(Kalenderjahr,11,1)-WEEKDAY(DATE(Kalenderjahr,11,1),(Wochenanfang=\"MO\")+1)+8","v":"2018-11-04"},"2018-11-05","2018-11-06","2018-11-07","2018-11-08","2018-11-09","2018-11-10"]
[null,null,{"$f":"IF(WEEKDAY(Kalendertag)=WochenanfangWert,CONCATENATE(\"Woche \",WEEKNUM(Kalendertag),\"/Tag \",Kalendertag-DATE(YEAR(Kalendertag),1,0)),CONCATENATE(\"Tag \",Kalendertag-DATE(YEAR(Kalendertag),1,0)))","v":"Woche 45/Tag 308"},{"$f":"IF(WEEKDAY(Kalendertag)=WochenanfangWert,CONCATENATE(\"Woche \",WEEKNUM(Kalendertag),\"/Tag \",Kalendertag-DATE(YEAR(Kalendertag),1,0)),CONCATENATE(\"Tag \",Kalendertag-DATE(YEAR(Kalendertag),1,0)))","v":"Tag 309"},{"$f":"IF(WEEKDAY(Kalendertag)=WochenanfangWert,CONCATENATE(\"Woche \",WEEKNUM(Kalendertag),\"/Tag \",Kalendertag-DATE(YEAR(Kalendertag),1,0)),CONCATENATE(\"Tag \",Kalendertag-DATE(YEAR(Kalendertag),1,0)))","v":"Tag 310"},{"$f":"IF(WEEKDAY(Kalendertag)=WochenanfangWert,CONCATENATE(\"Woche \",WEEKNUM(Kalendertag),\"/Tag \",Kalendertag-DATE(YEAR(Kalendertag),1,0)),CONCATENATE(\"Tag \",Kalendertag-DATE(YEAR(Kalendertag),1,0)))","v":"Tag 311"},{"$f":"IF(WEEKDAY(Kalendertag)=WochenanfangWert,CONCATENATE(\"Woche \",WEEKNUM(Kalendertag),\"/Tag \",Kalendertag-DATE(YEAR(Kalendertag),1,0)),CONCATENATE(\"Tag \",Kalendertag-DATE(YEAR(Kalendertag),1,0)))","v":"Tag 312"},{"$f":"IF(WEEKDAY(Kalendertag)=WochenanfangWert,CONCATENATE(\"Woche \",WEEKNUM(Kalendertag),\"/Tag \",Kalendertag-DATE(YEAR(Kalendertag),1,0)),CONCATENATE(\"Tag \",Kalendertag-DATE(YEAR(Kalendertag),1,0)))","v":"Tag 313"},{"$f":"IF(WEEKDAY(Kalendertag)=WochenanfangWert,CONCATENATE(\"Woche \",WEEKNUM(Kalendertag),\"/Tag \",Kalendertag-DATE(YEAR(Kalendertag),1,0)),CONCATENATE(\"Tag \",Kalendertag-DATE(YEAR(Kalendertag),1,0)))","v":"Tag 314"}]
[]
[null,null,{"$f":"TageUndWochen+DATE(Kalenderjahr,11,1)-WEEKDAY(DATE(Kalenderjahr,11,1),(Wochenanfang=\"MO\")+1)+15","v":"2018-11-11"},"2018-11-12","2018-11-13","2018-11-14","2018-11-15","2018-11-16","2018-11-17"]
[null,null,{"$f":"IF(WEEKDAY(Kalendertag)=WochenanfangWert,CONCATENATE(\"Woche \",WEEKNUM(Kalendertag),\"/Tag \",Kalendertag-DATE(YEAR(Kalendertag),1,0)),CONCATENATE(\"Tag \",Kalendertag-DATE(YEAR(Kalendertag),1,0)))","v":"Woche 46/Tag 315"},{"$f":"IF(WEEKDAY(Kalendertag)=WochenanfangWert,CONCATENATE(\"Woche \",WEEKNUM(Kalendertag),\"/Tag \",Kalendertag-DATE(YEAR(Kalendertag),1,0)),CONCATENATE(\"Tag \",Kalendertag-DATE(YEAR(Kalendertag),1,0)))","v":"Tag 316"},{"$f":"IF(WEEKDAY(Kalendertag)=WochenanfangWert,CONCATENATE(\"Woche \",WEEKNUM(Kalendertag),\"/Tag \",Kalendertag-DATE(YEAR(Kalendertag),1,0)),CONCATENATE(\"Tag \",Kalendertag-DATE(YEAR(Kalendertag),1,0)))","v":"Tag 317"},{"$f":"IF(WEEKDAY(Kalendertag)=WochenanfangWert,CONCATENATE(\"Woche \",WEEKNUM(Kalendertag),\"/Tag \",Kalendertag-DATE(YEAR(Kalendertag),1,0)),CONCATENATE(\"Tag \",Kalendertag-DATE(YEAR(Kalendertag),1,0)))","v":"Tag 318"},{"$f":"IF(WEEKDAY(Kalendertag)=WochenanfangWert,CONCATENATE(\"Woche \",WEEKNUM(Kalendertag),\"/Tag \",Kalendertag-DATE(YEAR(Kalendertag),1,0)),CONCATENATE(\"Tag \",Kalendertag-DATE(YEAR(Kalendertag),1,0)))","v":"Tag 319"},{"$f":"IF(WEEKDAY(Kalendertag)=WochenanfangWert,CONCATENATE(\"Woche \",WEEKNUM(Kalendertag),\"/Tag \",Kalendertag-DATE(YEAR(Kalendertag),1,0)),CONCATENATE(\"Tag \",Kalendertag-DATE(YEAR(Kalendertag),1,0)))","v":"Tag 320"},{"$f":"IF(WEEKDAY(Kalendertag)=WochenanfangWert,CONCATENATE(\"Woche \",WEEKNUM(Kalendertag),\"/Tag \",Kalendertag-DATE(YEAR(Kalendertag),1,0)),CONCATENATE(\"Tag \",Kalendertag-DATE(YEAR(Kalendertag),1,0)))","v":"Tag 321"}]
[]
[null,null,{"$f":"TageUndWochen+DATE(Kalenderjahr,11,1)-WEEKDAY(DATE(Kalenderjahr,11,1),(Wochenanfang=\"MO\")+1)+22","v":"2018-11-18"},"2018-11-19","2018-11-20","2018-11-21","2018-11-22","2018-11-23","2018-11-24"]
[null,null,{"$f":"IF(WEEKDAY(Kalendertag)=WochenanfangWert,CONCATENATE(\"Woche \",WEEKNUM(Kalendertag),\"/Tag \",Kalendertag-DATE(YEAR(Kalendertag),1,0)),CONCATENATE(\"Tag \",Kalendertag-DATE(YEAR(Kalendertag),1,0)))","v":"Woche 47/Tag 322"},{"$f":"IF(WEEKDAY(Kalendertag)=WochenanfangWert,CONCATENATE(\"Woche \",WEEKNUM(Kalendertag),\"/Tag \",Kalendertag-DATE(YEAR(Kalendertag),1,0)),CONCATENATE(\"Tag \",Kalendertag-DATE(YEAR(Kalendertag),1,0)))","v":"Tag 323"},{"$f":"IF(WEEKDAY(Kalendertag)=WochenanfangWert,CONCATENATE(\"Woche \",WEEKNUM(Kalendertag),\"/Tag \",Kalendertag-DATE(YEAR(Kalendertag),1,0)),CONCATENATE(\"Tag \",Kalendertag-DATE(YEAR(Kalendertag),1,0)))","v":"Tag 324"},{"$f":"IF(WEEKDAY(Kalendertag)=WochenanfangWert,CONCATENATE(\"Woche \",WEEKNUM(Kalendertag),\"/Tag \",Kalendertag-DATE(YEAR(Kalendertag),1,0)),CONCATENATE(\"Tag \",Kalendertag-DATE(YEAR(Kalendertag),1,0)))","v":"Tag 325"},{"$f":"IF(WEEKDAY(Kalendertag)=WochenanfangWert,CONCATENATE(\"Woche \",WEEKNUM(Kalendertag),\"/Tag \",Kalendertag-DATE(YEAR(Kalendertag),1,0)),CONCATENATE(\"Tag \",Kalendertag-DATE(YEAR(Kalendertag),1,0)))","v":"Tag 326"},{"$f":"IF(WEEKDAY(Kalendertag)=WochenanfangWert,CONCATENATE(\"Woche \",WEEKNUM(Kalendertag),\"/Tag \",Kalendertag-DATE(YEAR(Kalendertag),1,0)),CONCATENATE(\"Tag \",Kalendertag-DATE(YEAR(Kalendertag),1,0)))","v":"Tag 327"},{"$f":"IF(WEEKDAY(Kalendertag)=WochenanfangWert,CONCATENATE(\"Woche \",WEEKNUM(Kalendertag),\"/Tag \",Kalendertag-DATE(YEAR(Kalendertag),1,0)),CONCATENATE(\"Tag \",Kalendertag-DATE(YEAR(Kalendertag),1,0)))","v":"Tag 328"}]
[]
[null,null,{"$f":"TageUndWochen+DATE(Kalenderjahr,11,1)-WEEKDAY(DATE(Kalenderjahr,11,1),(Wochenanfang=\"MO\")+1)+29","v":"2018-11-25"},"2018-11-26","2018-11-27","2018-11-28","2018-11-29","2018-11-30","2018-12-01"]
[null,null,{"$f":"IF(WEEKDAY(Kalendertag)=WochenanfangWert,CONCATENATE(\"Woche \",WEEKNUM(Kalendertag),\"/Tag \",Kalendertag-DATE(YEAR(Kalendertag),1,0)),CONCATENATE(\"Tag \",Kalendertag-DATE(YEAR(Kalendertag),1,0)))","v":"Woche 48/Tag 329"},{"$f":"IF(WEEKDAY(Kalendertag)=WochenanfangWert,CONCATENATE(\"Woche \",WEEKNUM(Kalendertag),\"/Tag \",Kalendertag-DATE(YEAR(Kalendertag),1,0)),CONCATENATE(\"Tag \",Kalendertag-DATE(YEAR(Kalendertag),1,0)))","v":"Tag 330"},{"$f":"IF(WEEKDAY(Kalendertag)=WochenanfangWert,CONCATENATE(\"Woche \",WEEKNUM(Kalendertag),\"/Tag \",Kalendertag-DATE(YEAR(Kalendertag),1,0)),CONCATENATE(\"Tag \",Kalendertag-DATE(YEAR(Kalendertag),1,0)))","v":"Tag 331"},{"$f":"IF(WEEKDAY(Kalendertag)=WochenanfangWert,CONCATENATE(\"Woche \",WEEKNUM(Kalendertag),\"/Tag \",Kalendertag-DATE(YEAR(Kalendertag),1,0)),CONCATENATE(\"Tag \",Kalendertag-DATE(YEAR(Kalendertag),1,0)))","v":"Tag 332"},{"$f":"IF(WEEKDAY(Kalendertag)=WochenanfangWert,CONCATENATE(\"Woche \",WEEKNUM(Kalendertag),\"/Tag \",Kalendertag-DATE(YEAR(Kalendertag),1,0)),CONCATENATE(\"Tag \",Kalendertag-DATE(YEAR(Kalendertag),1,0)))","v":"Tag 333"},{"$f":"IF(WEEKDAY(Kalendertag)=WochenanfangWert,CONCATENATE(\"Woche \",WEEKNUM(Kalendertag),\"/Tag \",Kalendertag-DATE(YEAR(Kalendertag),1,0)),CONCATENATE(\"Tag \",Kalendertag-DATE(YEAR(Kalendertag),1,0)))","v":"Tag 334"},{"$f":"IF(WEEKDAY(Kalendertag)=WochenanfangWert,CONCATENATE(\"Woche \",WEEKNUM(Kalendertag),\"/Tag \",Kalendertag-DATE(YEAR(Kalendertag),1,0)),CONCATENATE(\"Tag \",Kalendertag-DATE(YEAR(Kalendertag),1,0)))","v":"Tag 335"}]
[{"$nulls":4},"NOTIZEN"]
[]
[null,null,{"$f":"TageUndWochen+DATE(Kalenderjahr,11,1)-WEEKDAY(DATE(Kalenderjahr,11,1),(Wochenanfang=\"MO\")+1)+36","v":"2018-12-02"},"2018-12-03"]
[null,null,{"$f":"IF(WEEKDAY(Kalendertag)=WochenanfangWert,CONCATENATE(\"Woche \",WEEKNUM(Kalendertag),\"/Tag \",Kalendertag-DATE(YEAR(Kalendertag),1,0)),CONCATENATE(\"Tag \",Kalendertag-DATE(YEAR(Kalendertag),1,0)))","v":"Woche 49/Tag 336"},{"$f":"IF(WEEKDAY(Kalendertag)=WochenanfangWert,CONCATENATE(\"Woche \",WEEKNUM(Kalendertag),\"/Tag \",Kalendertag-DATE(YEAR(Kalendertag),1,0)),CONCATENATE(\"Tag \",Kalendertag-DATE(YEAR(Kalendertag),1,0)))","v":"Tag 337"}]

{"sheet":"DEZ","index":11,"n_rows":20,"n_cols":9,"rows_kept":20,"merged":[[16,2,17,2],[17,4,19,8]]}
[null,"DEZ",{"$f":"UPPER(TEXT(Wochenanfang,\"ddd\"))","v":"SO"},{"$f":"UPPER(TEXT(D3,\"aaa\"))","v":"MO"},"DI","MI","DO","FR","SA"]
[null,{"$f":"Kalenderjahr","v":2018}]
[null,null,{"$f":"TageUndWochen+DATE(Kalenderjahr,12,1)-WEEKDAY(DATE(Kalenderjahr,12,1),(Wochenanfang=\"MO\")+1)+1","v":"2018-11-25"},"2018-11-26","2018-11-27","2018-11-28","2018-11-29","2018-11-30","2018-12-01"]
[null,null,{"$f":"IF(DAY(Kalendertag)=1,CONCATENATE(\"Woche \",WEEKNUM(Kalendertag),\"/Tag \",Kalendertag-DATE(YEAR(Kalendertag),1,0)),CONCATENATE(\"Tag \",Kalendertag-DATE(YEAR(Kalendertag),1,0)))","v":"Tag 329"},{"$f":"IF(DAY(Kalendertag)=1,CONCATENATE(\"Woche \",WEEKNUM(Kalendertag),\"/Tag \",Kalendertag-DATE(YEAR(Kalendertag),1,0)),CONCATENATE(\"Tag \",Kalendertag-DATE(YEAR(Kalendertag),1,0)))","v":"Tag 330"},{"$f":"IF(DAY(Kalendertag)=1,CONCATENATE(\"Woche \",WEEKNUM(Kalendertag),\"/Tag \",Kalendertag-DATE(YEAR(Kalendertag),1,0)),CONCATENATE(\"Tag \",Kalendertag-DATE(YEAR(Kalendertag),1,0)))","v":"Tag 331"},{"$f":"IF(DAY(Kalendertag)=1,CONCATENATE(\"Woche \",WEEKNUM(Kalendertag),\"/Tag \",Kalendertag-DATE(YEAR(Kalendertag),1,0)),CONCATENATE(\"Tag \",Kalendertag-DATE(YEAR(Kalendertag),1,0)))","v":"Tag 332"},{"$f":"IF(DAY(Kalendertag)=1,CONCATENATE(\"Woche \",WEEKNUM(Kalendertag),\"/Tag \",Kalendertag-DATE(YEAR(Kalendertag),1,0)),CONCATENATE(\"Tag \",Kalendertag-DATE(YEAR(Kalendertag),1,0)))","v":"Tag 333"},{"$f":"IF(DAY(Kalendertag)=1,CONCATENATE(\"Woche \",WEEKNUM(Kalendertag),\"/Tag \",Kalendertag-DATE(YEAR(Kalendertag),1,0)),CONCATENATE(\"Tag \",Kalendertag-DATE(YEAR(Kalendertag),1,0)))","v":"Tag 334"},{"$f":"IF(DAY(Kalendertag)=1,CONCATENATE(\"Woche \",WEEKNUM(Kalendertag),\"/Tag \",Kalendertag-DATE(YEAR(Kalendertag),1,0)),CONCATENATE(\"Tag \",Kalendertag-DATE(YEAR(Kalendertag),1,0)))","v":"Woche 48/Tag 335"}]
[]
[null,null,{"$f":"TageUndWochen+DATE(Kalenderjahr,12,1)-WEEKDAY(DATE(Kalenderjahr,12,1),(Wochenanfang=\"MO\")+1)+8","v":"2018-12-02"},"2018-12-03","2018-12-04","2018-12-05","2018-12-06","2018-12-07","2018-12-08"]
[null,null,{"$f":"IF(WEEKDAY(Kalendertag)=WochenanfangWert,CONCATENATE(\"Woche \",WEEKNUM(Kalendertag),\"/Tag \",Kalendertag-DATE(YEAR(Kalendertag),1,0)),CONCATENATE(\"Tag \",Kalendertag-DATE(YEAR(Kalendertag),1,0)))","v":"Woche 49/Tag 336"},{"$f":"IF(WEEKDAY(Kalendertag)=WochenanfangWert,CONCATENATE(\"Woche \",WEEKNUM(Kalendertag),\"/Tag \",Kalendertag-DATE(YEAR(Kalendertag),1,0)),CONCATENATE(\"Tag \",Kalendertag-DATE(YEAR(Kalendertag),1,0)))","v":"Tag 337"},{"$f":"IF(WEEKDAY(Kalendertag)=WochenanfangWert,CONCATENATE(\"Woche \",WEEKNUM(Kalendertag),\"/Tag \",Kalendertag-DATE(YEAR(Kalendertag),1,0)),CONCATENATE(\"Tag \",Kalendertag-DATE(YEAR(Kalendertag),1,0)))","v":"Tag 338"},{"$f":"IF(WEEKDAY(Kalendertag)=WochenanfangWert,CONCATENATE(\"Woche \",WEEKNUM(Kalendertag),\"/Tag \",Kalendertag-DATE(YEAR(Kalendertag),1,0)),CONCATENATE(\"Tag \",Kalendertag-DATE(YEAR(Kalendertag),1,0)))","v":"Tag 339"},{"$f":"IF(WEEKDAY(Kalendertag)=WochenanfangWert,CONCATENATE(\"Woche \",WEEKNUM(Kalendertag),\"/Tag \",Kalendertag-DATE(YEAR(Kalendertag),1,0)),CONCATENATE(\"Tag \",Kalendertag-DATE(YEAR(Kalendertag),1,0)))","v":"Tag 340"},{"$f":"IF(WEEKDAY(Kalendertag)=WochenanfangWert,CONCATENATE(\"Woche \",WEEKNUM(Kalendertag),\"/Tag \",Kalendertag-DATE(YEAR(Kalendertag),1,0)),CONCATENATE(\"Tag \",Kalendertag-DATE(YEAR(Kalendertag),1,0)))","v":"Tag 341"},{"$f":"IF(WEEKDAY(Kalendertag)=WochenanfangWert,CONCATENATE(\"Woche \",WEEKNUM(Kalendertag),\"/Tag \",Kalendertag-DATE(YEAR(Kalendertag),1,0)),CONCATENATE(\"Tag \",Kalendertag-DATE(YEAR(Kalendertag),1,0)))","v":"Tag 342"}]
[]
[null,null,{"$f":"TageUndWochen+DATE(Kalenderjahr,12,1)-WEEKDAY(DATE(Kalenderjahr,12,1),(Wochenanfang=\"MO\")+1)+15","v":"2018-12-09"},"2018-12-10","2018-12-11","2018-12-12","2018-12-13","2018-12-14","2018-12-15"]
[null,null,{"$f":"IF(WEEKDAY(Kalendertag)=WochenanfangWert,CONCATENATE(\"Woche \",WEEKNUM(Kalendertag),\"/Tag \",Kalendertag-DATE(YEAR(Kalendertag),1,0)),CONCATENATE(\"Tag \",Kalendertag-DATE(YEAR(Kalendertag),1,0)))","v":"Woche 50/Tag 343"},{"$f":"IF(WEEKDAY(Kalendertag)=WochenanfangWert,CONCATENATE(\"Woche \",WEEKNUM(Kalendertag),\"/Tag \",Kalendertag-DATE(YEAR(Kalendertag),1,0)),CONCATENATE(\"Tag \",Kalendertag-DATE(YEAR(Kalendertag),1,0)))","v":"Tag 344"},{"$f":"IF(WEEKDAY(Kalendertag)=WochenanfangWert,CONCATENATE(\"Woche \",WEEKNUM(Kalendertag),\"/Tag \",Kalendertag-DATE(YEAR(Kalendertag),1,0)),CONCATENATE(\"Tag \",Kalendertag-DATE(YEAR(Kalendertag),1,0)))","v":"Tag 345"},{"$f":"IF(WEEKDAY(Kalendertag)=WochenanfangWert,CONCATENATE(\"Woche \",WEEKNUM(Kalendertag),\"/Tag \",Kalendertag-DATE(YEAR(Kalendertag),1,0)),CONCATENATE(\"Tag \",Kalendertag-DATE(YEAR(Kalendertag),1,0)))","v":"Tag 346"},{"$f":"IF(WEEKDAY(Kalendertag)=WochenanfangWert,CONCATENATE(\"Woche \",WEEKNUM(Kalendertag),\"/Tag \",Kalendertag-DATE(YEAR(Kalendertag),1,0)),CONCATENATE(\"Tag \",Kalendertag-DATE(YEAR(Kalendertag),1,0)))","v":"Tag 347"},{"$f":"IF(WEEKDAY(Kalendertag)=WochenanfangWert,CONCATENATE(\"Woche \",WEEKNUM(Kalendertag),\"/Tag \",Kalendertag-DATE(YEAR(Kalendertag),1,0)),CONCATENATE(\"Tag \",Kalendertag-DATE(YEAR(Kalendertag),1,0)))","v":"Tag 348"},{"$f":"IF(WEEKDAY(Kalendertag)=WochenanfangWert,CONCATENATE(\"Woche \",WEEKNUM(Kalendertag),\"/Tag \",Kalendertag-DATE(YEAR(Kalendertag),1,0)),CONCATENATE(\"Tag \",Kalendertag-DATE(YEAR(Kalendertag),1,0)))","v":"Tag 349"}]
[]
[null,null,{"$f":"TageUndWochen+DATE(Kalenderjahr,12,1)-WEEKDAY(DATE(Kalenderjahr,12,1),(Wochenanfang=\"MO\")+1)+22","v":"2018-12-16"},"2018-12-17","2018-12-18","2018-12-19","2018-12-20","2018-12-21","2018-12-22"]
[null,null,{"$f":"IF(WEEKDAY(Kalendertag)=WochenanfangWert,CONCATENATE(\"Woche \",WEEKNUM(Kalendertag),\"/Tag \",Kalendertag-DATE(YEAR(Kalendertag),1,0)),CONCATENATE(\"Tag \",Kalendertag-DATE(YEAR(Kalendertag),1,0)))","v":"Woche 51/Tag 350"},{"$f":"IF(WEEKDAY(Kalendertag)=WochenanfangWert,CONCATENATE(\"Woche \",WEEKNUM(Kalendertag),\"/Tag \",Kalendertag-DATE(YEAR(Kalendertag),1,0)),CONCATENATE(\"Tag \",Kalendertag-DATE(YEAR(Kalendertag),1,0)))","v":"Tag 351"},{"$f":"IF(WEEKDAY(Kalendertag)=WochenanfangWert,CONCATENATE(\"Woche \",WEEKNUM(Kalendertag),\"/Tag \",Kalendertag-DATE(YEAR(Kalendertag),1,0)),CONCATENATE(\"Tag \",Kalendertag-DATE(YEAR(Kalendertag),1,0)))","v":"Tag 352"},{"$f":"IF(WEEKDAY(Kalendertag)=WochenanfangWert,CONCATENATE(\"Woche \",WEEKNUM(Kalendertag),\"/Tag \",Kalendertag-DATE(YEAR(Kalendertag),1,0)),CONCATENATE(\"Tag \",Kalendertag-DATE(YEAR(Kalendertag),1,0)))","v":"Tag 353"},{"$f":"IF(WEEKDAY(Kalendertag)=WochenanfangWert,CONCATENATE(\"Woche \",WEEKNUM(Kalendertag),\"/Tag \",Kalendertag-DATE(YEAR(Kalendertag),1,0)),CONCATENATE(\"Tag \",Kalendertag-DATE(YEAR(Kalendertag),1,0)))","v":"Tag 354"},{"$f":"IF(WEEKDAY(Kalendertag)=WochenanfangWert,CONCATENATE(\"Woche \",WEEKNUM(Kalendertag),\"/Tag \",Kalendertag-DATE(YEAR(Kalendertag),1,0)),CONCATENATE(\"Tag \",Kalendertag-DATE(YEAR(Kalendertag),1,0)))","v":"Tag 355"},{"$f":"IF(WEEKDAY(Kalendertag)=WochenanfangWert,CONCATENATE(\"Woche \",WEEKNUM(Kalendertag),\"/Tag \",Kalendertag-DATE(YEAR(Kalendertag),1,0)),CONCATENATE(\"Tag \",Kalendertag-DATE(YEAR(Kalendertag),1,0)))","v":"Tag 356"}]
[]
[null,null,{"$f":"TageUndWochen+DATE(Kalenderjahr,12,1)-WEEKDAY(DATE(Kalenderjahr,12,1),(Wochenanfang=\"MO\")+1)+29","v":"2018-12-23"},"2018-12-24","2018-12-25","2018-12-26","2018-12-27","2018-12-28","2018-12-29"]
[null,null,{"$f":"IF(WEEKDAY(Kalendertag)=WochenanfangWert,CONCATENATE(\"Woche \",WEEKNUM(Kalendertag),\"/Tag \",Kalendertag-DATE(YEAR(Kalendertag),1,0)),CONCATENATE(\"Tag \",Kalendertag-DATE(YEAR(Kalendertag),1,0)))","v":"Woche 52/Tag 357"},{"$f":"IF(WEEKDAY(Kalendertag)=WochenanfangWert,CONCATENATE(\"Woche \",WEEKNUM(Kalendertag),\"/Tag \",Kalendertag-DATE(YEAR(Kalendertag),1,0)),CONCATENATE(\"Tag \",Kalendertag-DATE(YEAR(Kalendertag),1,0)))","v":"Tag 358"},{"$f":"IF(WEEKDAY(Kalendertag)=WochenanfangWert,CONCATENATE(\"Woche \",WEEKNUM(Kalendertag),\"/Tag \",Kalendertag-DATE(YEAR(Kalendertag),1,0)),CONCATENATE(\"Tag \",Kalendertag-DATE(YEAR(Kalendertag),1,0)))","v":"Tag 359"},{"$f":"IF(WEEKDAY(Kalendertag)=WochenanfangWert,CONCATENATE(\"Woche \",WEEKNUM(Kalendertag),\"/Tag \",Kalendertag-DATE(YEAR(Kalendertag),1,0)),CONCATENATE(\"Tag \",Kalendertag-DATE(YEAR(Kalendertag),1,0)))","v":"Tag 360"},{"$f":"IF(WEEKDAY(Kalendertag)=WochenanfangWert,CONCATENATE(\"Woche \",WEEKNUM(Kalendertag),\"/Tag \",Kalendertag-DATE(YEAR(Kalendertag),1,0)),CONCATENATE(\"Tag \",Kalendertag-DATE(YEAR(Kalendertag),1,0)))","v":"Tag 361"},{"$f":"IF(WEEKDAY(Kalendertag)=WochenanfangWert,CONCATENATE(\"Woche \",WEEKNUM(Kalendertag),\"/Tag \",Kalendertag-DATE(YEAR(Kalendertag),1,0)),CONCATENATE(\"Tag \",Kalendertag-DATE(YEAR(Kalendertag),1,0)))","v":"Tag 362"},{"$f":"IF(WEEKDAY(Kalendertag)=WochenanfangWert,CONCATENATE(\"Woche \",WEEKNUM(Kalendertag),\"/Tag \",Kalendertag-DATE(YEAR(Kalendertag),1,0)),CONCATENATE(\"Tag \",Kalendertag-DATE(YEAR(Kalendertag),1,0)))","v":"Tag 363"}]
[{"$nulls":4},"NOTIZEN"]
[]
[null,null,{"$f":"TageUndWochen+DATE(Kalenderjahr,12,1)-WEEKDAY(DATE(Kalenderjahr,12,1),(Wochenanfang=\"MO\")+1)+36","v":"2018-12-30"},"2018-12-31"]
[null,null,{"$f":"IF(WEEKDAY(Kalendertag)=WochenanfangWert,CONCATENATE(\"Woche \",WEEKNUM(Kalendertag),\"/Tag \",Kalendertag-DATE(YEAR(Kalendertag),1,0)),CONCATENATE(\"Tag \",Kalendertag-DATE(YEAR(Kalendertag),1,0)))","v":"Woche 53/Tag 364"},{"$f":"IF(WEEKDAY(Kalendertag)=WochenanfangWert,CONCATENATE(\"Woche \",WEEKNUM(Kalendertag),\"/Tag \",Kalendertag-DATE(YEAR(Kalendertag),1,0)),CONCATENATE(\"Tag \",Kalendertag-DATE(YEAR(Kalendertag),1,0)))","v":"Tag 365"}]